Department family,Entity,Date,Expense type,Expense area,Supplier,Transaction number,Amount,VAT registration number
Department for Business Energy and Industrial Strategy,Intellectual Property Office,03/09/2021,Pay Costs,Patent Directorate,Acorn Recruitment Ltd,985269,518.36,Not Applicable
Department for Business Energy and Industrial Strategy,Intellectual Property Office,03/09/2021,Pay Costs,Patent Directorate,Acorn Recruitment Ltd,985270,685.54,Not Applicable
Department for Business Energy and Industrial Strategy,Intellectual Property Office,01/09/2021,Pay Costs,Patent Directorate,Acorn Recruitment Ltd,985841,704.11,Not Applicable
Department for Business Energy and Industrial Strategy,Intellectual Property Office,07/09/2021,Pay Costs,Patent Directorate,Acorn Recruitment Ltd,986483,505.01,Not Applicable
Department for Business Energy and Industrial Strategy,Intellectual Property Office,22/09/2021,Pay Costs,Patent Directorate,Acorn Recruitment Ltd,987596,749.28,Not Applicable
Department for Business Energy and Industrial Strategy,Intellectual Property Office,29/09/2021,Pay Costs,Patent Directorate,Acorn Recruitment Ltd,988134,724.18,Not Applicable
Department for Business Energy and Industrial Strategy,Intellectual Property Office,23/09/2021,Information Technology,IT Directorate,Avepoint UK Ltd,2109174487,"39,000.00",Not Applicable
Department for Business Energy and Industrial Strategy,Intellectual Property Office,10/09/2021,Office Supplies,People Places & Serv Directorate,Banner Group Limited,PROPERTYOFFICE,530.77,Not Applicable
Department for Business Energy and Industrial Strategy,Intellectual Property Office,03/09/2021,Telecoms,Projects,British  Telecom,WM41767738JUL-21,"1,960.00",Not Applicable
Department for Business Energy and Industrial Strategy,Intellectual Property Office,03/09/2021,Telecoms,Projects,British  Telecom,WM41767738Q012WK,"1,890.00",Not Applicable
Department for Business Energy and Industrial Strategy,Intellectual Property Office,02/09/2021,Office Supplies,Patent Directorate,British Library,7000250325,694.83,Not Applicable
Department for Business Energy and Industrial Strategy,Intellectual Property Office,13/09/2021,Miscellaneous Expenses General,People Places & Serv Directorate,Capital Law LLP,60016661,"2,557.20",Not Applicable
Department for Business Energy and Industrial Strategy,Intellectual Property Office,13/09/2021,Miscellaneous Expenses General,People Places & Serv Directorate,Capital Law LLP,60017027,"1,348.20",Not Applicable
Department for Business Energy and Industrial Strategy,Intellectual Property Office,06/09/2021,Postage & Delivery Costs,People Places & Serv Directorate,DHL International (UK) Ltd,BRSR005011659,"4,230.35",Not Applicable
Department for Business Energy and Industrial Strategy,Intellectual Property Office,07/09/2021,Postage & Delivery Costs,People Places & Serv Directorate,DHL International (UK) Ltd,BRSR005036961,"2,628.71",Not Applicable
Department for Business Energy and Industrial Strategy,Intellectual Property Office,21/09/2021,Postage & Delivery Costs,People Places & Serv Directorate,DHL International (UK) Ltd,BRSR005076906,"6,125.71",Not Applicable
Department for Business Energy and Industrial Strategy,Intellectual Property Office,28/09/2021,Postage & Delivery Costs,People Places & Serv Directorate,DHL International (UK) Ltd,BRSR005098202,"3,710.19",Not Applicable
Department for Business Energy and Industrial Strategy,Intellectual Property Office,14/09/2021,Accommodation,People Places & Serv Directorate,Dwr Cymru Cyf,2094677644,590.69,Not Applicable
Department for Business Energy and Industrial Strategy,Intellectual Property Office,22/09/2021,Supporting UK Business,Innovation Directorate,Greaves Brewster LLP,32060,"2,500.00",Not Applicable
Department for Business Energy and Industrial Strategy,Intellectual Property Office,20/09/2021,Supporting UK Business,Innovation Directorate,Harrison Goddard Foote,654135,"2,500.01",Not Applicable
Department for Business Energy and Industrial Strategy,Intellectual Property Office,01/09/2021,Pay Costs,Projects,Hays Specialist Recruitment,1011522153,"3,541.26",Not Applicable
Department for Business Energy and Industrial Strategy,Intellectual Property Office,01/09/2021,Pay Costs,Projects,Hays Specialist Recruitment,1011537317,"2,478.89",Not Applicable
Department for Business Energy and Industrial Strategy,Intellectual Property Office,07/09/2021,Pay Costs,Projects,Hays Specialist Recruitment,1011538107,"3,541.26",Not Applicable
Department for Business Energy and Industrial Strategy,Intellectual Property Office,07/09/2021,Pay Costs,Projects,Hays Specialist Recruitment,1011538131,"1,454.33",Not Applicable
Department for Business Energy and Industrial Strategy,Intellectual Property Office,07/09/2021,Pay Costs,Projects,Hays Specialist Recruitment,1011538132,"4,362.98",Not Applicable
Department for Business Energy and Industrial Strategy,Intellectual Property Office,07/09/2021,Pay Costs,Projects,Hays Specialist Recruitment,1011543140,"1,001.52",Not Applicable
Department for Business Energy and Industrial Strategy,Intellectual Property Office,07/09/2021,Pay Costs,Projects,Hays Specialist Recruitment,1011558004,"1,027.20",Not Applicable
Department for Business Energy and Industrial Strategy,Intellectual Property Office,01/09/2021,Pay Costs,Projects,Hays Specialist Recruitment,1011565153,"3,541.26",Not Applicable
Department for Business Energy and Industrial Strategy,Intellectual Property Office,07/09/2021,Pay Costs,Projects,Hays Specialist Recruitment,1011567001,"1,062.38",Not Applicable
Department for Business Energy and Industrial Strategy,Intellectual Property Office,07/09/2021,Pay Costs,Projects,Hays Specialist Recruitment,1011567035,"7,271.64",Not Applicable
Department for Business Energy and Industrial Strategy,Intellectual Property Office,07/09/2021,Pay Costs,Projects,Hays Specialist Recruitment,1011572833,"1,027.20",Not Applicable
Department for Business Energy and Industrial Strategy,Intellectual Property Office,07/09/2021,Pay Costs,Projects,Hays Specialist Recruitment,1011581497,"1,416.50",Not Applicable
Department for Business Energy and Industrial Strategy,Intellectual Property Office,01/09/2021,Pay Costs,Projects,Hays Specialist Recruitment,1011582721,"3,541.26",Not Applicable
Department for Business Energy and Industrial Strategy,Intellectual Property Office,07/09/2021,Pay Costs,Projects,Hays Specialist Recruitment,1011582957,"7,271.64",Not Applicable
Department for Business Energy and Industrial Strategy,Intellectual Property Office,14/09/2021,Pay Costs,Projects,Hays Specialist Recruitment,1011589984,"1,027.20",Not Applicable
Department for Business Energy and Industrial Strategy,Intellectual Property Office,08/09/2021,Staff Costs,People Places & Serv Directorate,Hays Specialist Recruitment,1011591930,"12,625.85",Not Applicable
Department for Business Energy and Industrial Strategy,Intellectual Property Office,29/09/2021,Pay Costs,Projects,Hays Specialist Recruitment,1011597321,"2,833.01",Not Applicable
Department for Business Energy and Industrial Strategy,Intellectual Property Office,30/09/2021,Pay Costs,Projects,Hays Specialist Recruitment,1011597938,"4,362.98",Not Applicable
Department for Business Energy and Industrial Strategy,Intellectual Property Office,29/09/2021,Pay Costs,Projects,Hays Specialist Recruitment,1011613487,"3,541.26",Not Applicable
Department for Business Energy and Industrial Strategy,Intellectual Property Office,30/09/2021,Pay Costs,Projects,Hays Specialist Recruitment,1011613491,"7,271.64",Not Applicable
Department for Business Energy and Industrial Strategy,Intellectual Property Office,30/09/2021,Pay Costs,Projects,Hays Specialist Recruitment,1011631320,"7,271.64",Not Applicable
Department for Business Energy and Industrial Strategy,Intellectual Property Office,29/09/2021,Pay Costs,Projects,Hays Specialist Recruitment,1011631447,"3,541.26",Not Applicable
Department for Business Energy and Industrial Strategy,Intellectual Property Office,30/09/2021,Pay Costs,Projects,Hays Specialist Recruitment,1011644243,"7,271.64",Not Applicable
Department for Business Energy and Industrial Strategy,Intellectual Property Office,29/09/2021,Pay Costs,Projects,Hays Specialist Recruitment,1011645500,"3,541.26",Not Applicable
Department for Business Energy and Industrial Strategy,Intellectual Property Office,06/09/2021,Accommodation,People Places & Serv Directorate,HFX Ltd,1187,"3,546.77",Not Applicable
Department for Business Energy and Industrial Strategy,Intellectual Property Office,24/09/2021,Accommodation,People Places & Serv Directorate,HFX Ltd,1288,"1,020.00",Not Applicable
Department for Business Energy and Industrial Strategy,Intellectual Property Office,29/09/2021,Pay Costs,Copyright and Enforcement Directorate,Home  Office,2587063,"4,414.13",Not Applicable
Department for Business Energy and Industrial Strategy,Intellectual Property Office,29/09/2021,Pay Costs,Copyright and Enforcement Directorate,Home  Office,2587064,"4,100.48",Not Applicable
Department for Business Energy and Industrial Strategy,Intellectual Property Office,16/09/2021,Supporting UK Business,Innovation Directorate,IP Pragmatics,2772,"2,500.00",Not Applicable
Department for Business Energy and Industrial Strategy,Intellectual Property Office,03/09/2021,Staff Costs,People Places & Serv Directorate,Michael Page International Recruitment L,INAD10080760,"6,312.92",Not Applicable
Department for Business Energy and Industrial Strategy,Intellectual Property Office,29/09/2021,Information Technology,People Places & Serv Directorate,Quadient UK Limited,NE9000335-29SEP2,"10,000.00",Not Applicable
Department for Business Energy and Industrial Strategy,Intellectual Property Office,09/09/2021,Postage & Delivery Costs,People Places & Serv Directorate,Quadient UK Limited,NE9000335-AUG21,"10,000.00",Not Applicable
Department for Business Energy and Industrial Strategy,Intellectual Property Office,07/09/2021,Pay Costs,People Places & Serv Directorate,Park Retail Ltd t/a Love2reward,56180774,"2,744.00",Not Applicable
Department for Business Energy and Industrial Strategy,Intellectual Property Office,09/09/2021,Pay Costs,People Places & Serv Directorate,Park Retail Ltd t/a Love2reward,56200351,"1,661.10",Not Applicable
Department for Business Energy and Industrial Strategy,Intellectual Property Office,13/09/2021,Pay Costs,People Places & Serv Directorate,Park Retail Ltd t/a Love2reward,56221828,"2,258.90",Not Applicable
Department for Business Energy and Industrial Strategy,Intellectual Property Office,09/09/2021,Information Technology,IT Directorate,Phoenix Software Ltd,OP/I905697,"79,788.11",Not Applicable
Department for Business Energy and Industrial Strategy,Intellectual Property Office,16/09/2021,Information Technology,IT Directorate,Phoenix Software Ltd,OP/I908160,"76,295.21",Not Applicable
Department for Business Energy and Industrial Strategy,Intellectual Property Office,23/09/2021,Information Technology,IT Directorate,QA Ltd,QA-PRI-000000481,"1,739.70",Not Applicable
Department for Business Energy and Industrial Strategy,Intellectual Property Office,02/09/2021,Postage & Delivery Costs,People Places & Serv Directorate,Royal Mail,9063524736,"1,545.18",Not Applicable
Department for Business Energy and Industrial Strategy,Intellectual Property Office,22/09/2021,Postage & Delivery Costs,People Places & Serv Directorate,Royal Mail,9063632635,"2,084.96",Not Applicable
Department for Business Energy and Industrial Strategy,Intellectual Property Office,02/09/2021,Accommodation,People Places & Serv Directorate,Senator International Ltd,S01687453,"4,710.24",Not Applicable
Department for Business Energy and Industrial Strategy,Intellectual Property Office,10/09/2021,Accommodation,People Places & Serv Directorate,Senator International Ltd,S01689329,675.6,Not Applicable
Department for Business Energy and Industrial Strategy,Intellectual Property Office,01/09/2021,Information Technology,IT Directorate,Specialist Computer Centres Plc,OP/N023215,"12,437.95",Not Applicable
Department for Business Energy and Industrial Strategy,Intellectual Property Office,01/09/2021,Information Technology,IT Directorate,Specialist Computer Centres Plc,OP/N023216,"11,463.36",Not Applicable
Department for Business Energy and Industrial Strategy,Intellectual Property Office,07/09/2021,Information Technology,Patent Directorate,Thomson Reuters,6801186707,"74,944.80",Not Applicable
Department for Business Energy and Industrial Strategy,Intellectual Property Office,06/09/2021,Accommodation,People Places & Serv Directorate,Total Security Protection Ltd,205190,"10,952.02",Not Applicable
Department for Business Energy and Industrial Strategy,Intellectual Property Office,28/09/2021,Information Technology,IT Directorate,Trustmarque Solutions Ltd,2326737,"16,011.32",Not Applicable
Department for Business Energy and Industrial Strategy,Intellectual Property Office,17/09/2021,Travel & Subsistence,People Places & Serv Directorate,Veezu Ltd T/A Dragon Taxis (Newpor,55578,590.1,Not Applicable
Department for Business Energy and Industrial Strategy,Intellectual Property Office,17/09/2021,Travel & Subsistence,Innovation Directorate,Veezu Ltd T/A Dragon Taxis (Newpor,55578,7.8,Not Applicable
Department for Business Energy and Industrial Strategy,Intellectual Property Office,17/09/2021,Travel & Subsistence,International Policy Directorate,Veezu Ltd T/A Dragon Taxis (Newpor,55578,43.08,Not Applicable
Department for Business Energy and Industrial Strategy,Intellectual Property Office,10/09/2021,Office Machinery,People Places & Serv Directorate,Xerox Finance,97516946,"2,557.08",Not Applicable
Department for Business Energy and Industrial Strategy,Intellectual Property Office,10/09/2021,Office Machinery,People Places & Serv Directorate,Xerox Finance,97517187,"2,983.45",Not Applicable
Department for Business Energy and Industrial Strategy,Intellectual Property Office,06/09/2021,Office Supplies,People Places & Serv Directorate,Antalis UK Ltd,9956716,"2,709.61",Not Applicable
Department for Business Energy and Industrial Strategy,Intellectual Property Office,24/09/2021,Accommodation,People Places & Serv Directorate,Computacenter (UK) ltd,3883227713,"3,289.74",Not Applicable
Department for Business Energy and Industrial Strategy,Intellectual Property Office,16/09/2021,Supporting UK Business,Innovation Directorate,Marks & Clerk LLP,5238804,"2,500.00",Not Applicable
Department for Business Energy and Industrial Strategy,Intellectual Property Office,16/09/2021,Supporting UK Business,Innovation Directorate,Marks & Clerk LLP,5238942,"2,500.00",Not Applicable
Department for Business Energy and Industrial Strategy,Intellectual Property Office,23/09/2021,Supporting UK Business,Innovation Directorate,Mewburn  Ellis LLP,203326,"2,500.00",Not Applicable
Department for Business Energy and Industrial Strategy,Intellectual Property Office,21/09/2021,Telecoms,IT Directorate,Vodafone Corporate Ltd,98656552,"4,356.85",Not Applicable
Department for Business Energy and Industrial Strategy,Intellectual Property Office,21/09/2021,Telecoms,IT Directorate,Vodafone Corporate Ltd,98933425,"1,814.56",Not Applicable
Department for Business Energy and Industrial Strategy,Intellectual Property Office,06/09/2021,Supporting UK Business,International Policy Directorate,Foreign & Commonwealth and Development O,1138427,"5,881.18",Not Applicable
Department for Business Energy and Industrial Strategy,Intellectual Property Office,28/09/2021,Supporting UK Business,International Policy Directorate,Foreign & Commonwealth and Development O,1138589,"4,172.21",Not Applicable
Department for Business Energy and Industrial Strategy,Intellectual Property Office,28/09/2021,Supporting UK Business,International Policy Directorate,Foreign & Commonwealth and Development O,1138806,"12,496.02",Not Applicable
Department for Business Energy and Industrial Strategy,Intellectual Property Office,13/09/2021,Staff Costs,People Places & Serv Directorate,HM REVENUE & CUSTOMS,1.80E+13,"12,264.24",Not Applicable
Department for Business Energy and Industrial Strategy,Intellectual Property Office,10/09/2021,Misc Expenses Finance,Finance Directorate,NATIONAL AUDIT OFFICE,SIN002880,"48,000.00",Not Applicable
Department for Business Energy and Industrial Strategy,Intellectual Property Office,09/09/2021,Information Technology,Finance Directorate,Advanced 365 Limited,ARBK/99058030,774,Not Applicable
Department for Business Energy and Industrial Strategy,Intellectual Property Office,06/09/2021,Postage & Delivery Costs,People Places & Serv Directorate,RICO LOGISTICS LTD,SINRLLFS00327389,"1,052.47",Not Applicable
Department for Business Energy and Industrial Strategy,Intellectual Property Office,13/09/2021,Postage & Delivery Costs,People Places & Serv Directorate,RICO LOGISTICS LTD,SINRLLFS00328544,"2,267.27",Not Applicable
Department for Business Energy and Industrial Strategy,Intellectual Property Office,21/09/2021,Postage & Delivery Costs,People Places & Serv Directorate,RICO LOGISTICS LTD,SINRLLFS00329998,"3,100.34",Not Applicable
Department for Business Energy and Industrial Strategy,Intellectual Property Office,13/09/2021,Telecoms,IT Directorate,VIRGIN MEDIA,917218-SEP21,728.45,Not Applicable
Department for Business Energy and Industrial Strategy,Intellectual Property Office,23/09/2021,Supporting UK Business,Innovation Directorate,LAWRIE INTELLECTUAL PROPERTY,121240,"2,500.00",Not Applicable
Department for Business Energy and Industrial Strategy,Intellectual Property Office,16/09/2021,Supporting UK Business,Innovation Directorate,LAWRIE INTELLECTUAL PROPERTY,121320,"2,500.00",Not Applicable
Department for Business Energy and Industrial Strategy,Intellectual Property Office,10/09/2021,Supporting UK Business,Innovation Directorate,INNGOT LTD,S21-08-14,"2,500.00",Not Applicable
Department for Business Energy and Industrial Strategy,Intellectual Property Office,10/09/2021,Supporting UK Business,Innovation Directorate,INNGOT LTD,S21-08/12,"2,500.00",Not Applicable
Department for Business Energy and Industrial Strategy,Intellectual Property Office,28/09/2021,Supporting UK Business,Innovation Directorate,STEPHENS SCOWN LLP,158541,"2,500.00",Not Applicable
Department for Business Energy and Industrial Strategy,Intellectual Property Office,23/09/2021,Supporting UK Business,Innovation Directorate,STEPHENS SCOWN LLP,158726,"2,500.00",Not Applicable
Department for Business Energy and Industrial Strategy,Intellectual Property Office,29/09/2021,Pay Costs,Finance Directorate,Accountancy Recruitment Wales Ltd,999616,"2,311.66",Not Applicable
Department for Business Energy and Industrial Strategy,Intellectual Property Office,01/09/2021,Pay Costs,Finance Directorate,Accountancy Recruitment Wales Ltd,999628,"2,311.66",Not Applicable
Department for Business Energy and Industrial Strategy,Intellectual Property Office,01/09/2021,Pay Costs,Finance Directorate,Accountancy Recruitment Wales Ltd,999629,524.88,Not Applicable
Department for Business Energy and Industrial Strategy,Intellectual Property Office,01/09/2021,Pay Costs,Finance Directorate,Accountancy Recruitment Wales Ltd,999630,"1,243.20",Not Applicable
Department for Business Energy and Industrial Strategy,Intellectual Property Office,01/09/2021,Pay Costs,Finance Directorate,Accountancy Recruitment Wales Ltd,999633,891.78,Not Applicable
Department for Business Energy and Industrial Strategy,Intellectual Property Office,09/09/2021,Pay Costs,Finance Directorate,Accountancy Recruitment Wales Ltd,999637,"1,075.20",Not Applicable
Department for Business Energy and Industrial Strategy,Intellectual Property Office,09/09/2021,Pay Costs,Finance Directorate,Accountancy Recruitment Wales Ltd,999639,655.13,Not Applicable
Department for Business Energy and Industrial Strategy,Intellectual Property Office,09/09/2021,Pay Costs,Finance Directorate,Accountancy Recruitment Wales Ltd,999641,590.5,Not Applicable
Department for Business Energy and Industrial Strategy,Intellectual Property Office,08/09/2021,Pay Costs,Finance Directorate,Accountancy Recruitment Wales Ltd,999643,"1,260.16",Not Applicable
Department for Business Energy and Industrial Strategy,Intellectual Property Office,08/09/2021,Pay Costs,Finance Directorate,Accountancy Recruitment Wales Ltd,999644,576.6,Not Applicable
Department for Business Energy and Industrial Strategy,Intellectual Property Office,16/09/2021,Pay Costs,Finance Directorate,Accountancy Recruitment Wales Ltd,999645,"1,243.20",Not Applicable
Department for Business Energy and Industrial Strategy,Intellectual Property Office,16/09/2021,Pay Costs,Finance Directorate,Accountancy Recruitment Wales Ltd,999646,"1,010.40",Not Applicable
Department for Business Energy and Industrial Strategy,Intellectual Property Office,16/09/2021,Pay Costs,Finance Directorate,Accountancy Recruitment Wales Ltd,999647,"1,695.22",Not Applicable
Department for Business Energy and Industrial Strategy,Intellectual Property Office,16/09/2021,Pay Costs,Finance Directorate,Accountancy Recruitment Wales Ltd,999652,"2,125.06",Not Applicable
Department for Business Energy and Industrial Strategy,Intellectual Property Office,16/09/2021,Pay Costs,Finance Directorate,Accountancy Recruitment Wales Ltd,999653,"1,106.00",Not Applicable
Department for Business Energy and Industrial Strategy,Intellectual Property Office,23/09/2021,Pay Costs,Finance Directorate,Accountancy Recruitment Wales Ltd,999656,"1,243.20",Not Applicable
Department for Business Energy and Industrial Strategy,Intellectual Property Office,23/09/2021,Pay Costs,Finance Directorate,Accountancy Recruitment Wales Ltd,999657,"2,311.66",Not Applicable
Department for Business Energy and Industrial Strategy,Intellectual Property Office,23/09/2021,Pay Costs,Finance Directorate,Accountancy Recruitment Wales Ltd,999659,"1,225.57",Not Applicable
Department for Business Energy and Industrial Strategy,Intellectual Property Office,23/09/2021,Pay Costs,Finance Directorate,Accountancy Recruitment Wales Ltd,999660,"2,190.16",Not Applicable
Department for Business Energy and Industrial Strategy,Intellectual Property Office,30/09/2021,Pay Costs,Finance Directorate,Accountancy Recruitment Wales Ltd,999661,"1,173.26",Not Applicable
Department for Business Energy and Industrial Strategy,Intellectual Property Office,30/09/2021,Pay Costs,Finance Directorate,Accountancy Recruitment Wales Ltd,999662,"2,311.66",Not Applicable
Department for Business Energy and Industrial Strategy,Intellectual Property Office,30/09/2021,Pay Costs,Finance Directorate,Accountancy Recruitment Wales Ltd,999663,"2,111.10",Not Applicable
Department for Business Energy and Industrial Strategy,Intellectual Property Office,09/09/2021,Postage & Delivery Costs,People Places & Serv Directorate,CitySprint (UK) Ltd,3730868,"5,921.64",Not Applicable
Department for Business Energy and Industrial Strategy,Intellectual Property Office,14/09/2021,Accommodation,People Places & Serv Directorate,EDF ENERGY,/000010503732,"22,293.04",Not Applicable
Department for Business Energy and Industrial Strategy,Intellectual Property Office,14/09/2021,Accommodation,People Places & Serv Directorate,EDF ENERGY,10505222,"1,001.37",Not Applicable
Department for Business Energy and Industrial Strategy,Intellectual Property Office,10/09/2021,Accommodation,People Places & Serv Directorate,EDF ENERGY,600004963,518.4,Not Applicable
Department for Business Energy and Industrial Strategy,Intellectual Property Office,30/09/2021,Information Technology,IT Directorate,Bytes Software Services Ltd,816350,"2,046.66",Not Applicable
Department for Business Energy and Industrial Strategy,Intellectual Property Office,14/09/2021,Pay Costs,Copyright and Enforcement Directorate,Police & Crime Commissioner Sussex,1800048699,"3,010.22",Not Applicable
Department for Business Energy and Industrial Strategy,Intellectual Property Office,14/09/2021,Staff Costs,People Places & Serv Directorate,Sodexo Motivation Solutions UK Ltd,3761884,"3,563.06",Not Applicable
Department for Business Energy and Industrial Strategy,Intellectual Property Office,14/09/2021,Staff Costs,People Places & Serv Directorate,Sodexo Motivation Solutions UK Ltd,3761930,"3,571.35",Not Applicable
Department for Business Energy and Industrial Strategy,Intellectual Property Office,07/09/2021,Telecoms,IT Directorate,Personal expenses,UK10/092021/1256,"2,238.11",Not Applicable
Department for Business Energy and Industrial Strategy,Intellectual Property Office,14/09/2021,Office Machinery,People Places & Serv Directorate,Sharp Business Systems,8079013103,-660.07,Not Applicable
Department for Business Energy and Industrial Strategy,Intellectual Property Office,01/09/2021,Miscellaneous Expenses General,Trade Mark Directorate,FCDO Services,6079377,"1,125.00",Not Applicable
Department for Business Energy and Industrial Strategy,Intellectual Property Office,13/09/2021,Miscellaneous Expenses General,Innovation Directorate,FCDO Services,6079499,"11,953.28",Not Applicable
Department for Business Energy and Industrial Strategy,Intellectual Property Office,13/09/2021,Miscellaneous Expenses General,Trade Mark Directorate,FCDO Services,6079506,"1,050.00",Not Applicable
Department for Business Energy and Industrial Strategy,Intellectual Property Office,22/09/2021,Miscellaneous Expenses General,Trade Mark Directorate,FCDO Services,6079566,"1,200.00",Not Applicable
Department for Business Energy and Industrial Strategy,Intellectual Property Office,23/09/2021,Supporting UK Business,Innovation Directorate,Murgitroyd & Company Ltd,48230A-21,"2,500.00",Not Applicable
Department for Business Energy and Industrial Strategy,Intellectual Property Office,01/09/2021,Accommodation,People Places & Serv Directorate,Quality Floorcare Ltd,16153,"4,843.87",Not Applicable
Department for Business Energy and Industrial Strategy,Intellectual Property Office,01/09/2021,Marketing & Publicity,Innovation Directorate,NLA Media Access Limited,Q468253,"11,803.44",Not Applicable
Department for Business Energy and Industrial Strategy,Intellectual Property Office,02/09/2021,Information Technology,Finance Directorate,Personal expenses,UKINV-263845,"3,951.24",Not Applicable
Department for Business Energy and Industrial Strategy,Intellectual Property Office,30/09/2021,Miscellaneous Expenses General,Patent Directorate,European Patent Office,40303942,"237,147.07",Not Applicable
Department for Business Energy and Industrial Strategy,Intellectual Property Office,27/09/2021,Miscellaneous Expenses General,Patent Directorate,European Patent Office,40305142,"258,814.16",Not Applicable
Department for Business Energy and Industrial Strategy,Intellectual Property Office,24/09/2021,Information Technology,Patent Directorate,European Patent Office,40305398,"104,769.40",Not Applicable
Department for Business Energy and Industrial Strategy,Intellectual Property Office,23/09/2021,Miscellaneous Expenses General,People Places & Serv Directorate,Insight Health Screening,15674,"2,600.00",Not Applicable
Department for Business Energy and Industrial Strategy,Intellectual Property Office,24/09/2021,Miscellaneous Expenses General,People Places & Serv Directorate,Insight Health Screening,15919,"2,130.00",Not Applicable
Department for Business Energy and Industrial Strategy,Intellectual Property Office,14/09/2021,Accommodation,People Places & Serv Directorate,SIG TRADING LTD,7.03E+11,"5,704.39",Not Applicable
Department for Business Energy and Industrial Strategy,Intellectual Property Office,14/09/2021,Supporting UK Business,Innovation Directorate,Scintilla,INV-02851,"2,500.00",Not Applicable
Department for Business Energy and Industrial Strategy,Intellectual Property Office,14/09/2021,Office Machinery,People Places & Serv Directorate,Siemens Financial Services Limited,244/21/0246753,"2,760.00",Not Applicable
Department for Business Energy and Industrial Strategy,Intellectual Property Office,13/09/2021,Miscellaneous Expenses General,People Places & Serv Directorate,Health Assured Ltd,SF-088672,"2,541.00",Not Applicable
Department for Business Energy and Industrial Strategy,Intellectual Property Office,30/09/2021,Supporting UK Business,Innovation Directorate,Appleyard Lees,153301,"2,500.00",Not Applicable
Department for Business Energy and Industrial Strategy,Intellectual Property Office,06/09/2021,Supporting UK Business,Innovation Directorate,Ellis IP Limited,4530,"2,500.00",Not Applicable
Department for Business Energy and Industrial Strategy,Intellectual Property Office,10/09/2021,Supporting UK Business,Innovation Directorate,Hutchinson IP Ltd,5019,"2,500.00",Not Applicable
Department for Business Energy and Industrial Strategy,Intellectual Property Office,07/09/2021,Information Technology,IT Directorate,Responsiv Solutions Limited,RSL1149,"3,168.00",Not Applicable
Department for Business Energy and Industrial Strategy,Intellectual Property Office,07/09/2021,Information Technology,IT Directorate,Responsiv Solutions Limited,RSL1150,"42,966.00",Not Applicable
Department for Business Energy and Industrial Strategy,Intellectual Property Office,03/09/2021,Staff Costs,IT Directorate,Responsiv Solutions Limited,RSL1156,"1,215.00",Not Applicable
Department for Business Energy and Industrial Strategy,Intellectual Property Office,02/09/2021,Supporting UK Business,Innovation Directorate,Bridle Intellectual Property Ltd,133/032,"2,500.00",Not Applicable
Department for Business Energy and Industrial Strategy,Intellectual Property Office,29/09/2021,Accommodation,People Places & Serv Directorate,Rexel UK Limited,445039687,679.25,Not Applicable
Department for Business Energy and Industrial Strategy,Intellectual Property Office,06/09/2021,Information Technology,IT Directorate,Equal Experts UK Limited,INV-9232,"15,000.00",Not Applicable
Department for Business Energy and Industrial Strategy,Intellectual Property Office,13/09/2021,Miscellaneous Expenses General,People Places & Serv Directorate,Autism Spectrum Connections Cymru,2765,"1,276.16",Not Applicable
Department for Business Energy and Industrial Strategy,Intellectual Property Office,14/09/2021,Legal & Hearings,Finance Directorate,"Department Business, Energy & Industrial",6.15E+11,"199,500.00",Not Applicable
Department for Business Energy and Industrial Strategy,Intellectual Property Office,28/09/2021,Supporting UK Business,Innovation Directorate,Bartle Read Ltd,5286,"2,500.00",Not Applicable
Department for Business Energy and Industrial Strategy,Intellectual Property Office,28/09/2021,Supporting UK Business,Innovation Directorate,IP21 LTD,27257,"2,499.60",Not Applicable
Department for Business Energy and Industrial Strategy,Intellectual Property Office,03/09/2021,Information Technology,Patent Directorate,Clarivate Analytics (UK) Limited,2007INV00039286,"155,923.20",Not Applicable
Department for Business Energy and Industrial Strategy,Intellectual Property Office,16/09/2021,Accommodation,People Places & Serv Directorate,Shred It Ltd,9504972422,"1,008.00",Not Applicable
Department for Business Energy and Industrial Strategy,Intellectual Property Office,07/09/2021,Supporting UK Business,Innovation Directorate,Graham Watt & Co LLP,29977,"2,500.00",Not Applicable
Department for Business Energy and Industrial Strategy,Intellectual Property Office,30/09/2021,Supporting UK Business,Innovation Directorate,Graham Watt & Co LLP,30041,"2,500.00",Not Applicable
Department for Business Energy and Industrial Strategy,Intellectual Property Office,16/09/2021,Supporting UK Business,Innovation Directorate,CMS Cameron MsKenna LLP Office A/C,4269383,"2,500.00",Not Applicable
Department for Business Energy and Industrial Strategy,Intellectual Property Office,01/09/2021,Office Supplies,People Places & Serv Directorate,Blake Envelopes,SI0000716583,"1,287.30",Not Applicable
Department for Business Energy and Industrial Strategy,Intellectual Property Office,07/09/2021,Office Supplies,People Places & Serv Directorate,Blake Envelopes,SI0000717065,603.6,Not Applicable
Department for Business Energy and Industrial Strategy,Intellectual Property Office,07/09/2021,Information Technology,IT Directorate,8X8 Solutions,3165827,"2,538.23",Not Applicable
Department for Business Energy and Industrial Strategy,Intellectual Property Office,09/09/2021,Staff Costs,People Places & Serv Directorate,JL Training & Consultancy,2175,"2,160.00",Not Applicable
Department for Business Energy and Industrial Strategy,Intellectual Property Office,20/09/2021,Supporting UK Business,Innovation Directorate,The IP Asset Partnership Ltd,2106092,"2,500.00",Not Applicable
Department for Business Energy and Industrial Strategy,Intellectual Property Office,30/09/2021,Supporting UK Business,Innovation Directorate,Sweetinburgh & Windsor Ltd,6527,"2,500.00",Not Applicable
Department for Business Energy and Industrial Strategy,Intellectual Property Office,28/09/2021,Supporting UK Business,Innovation Directorate,Definition IP Ltd,INV-002107,"2,500.00",Not Applicable
Department for Business Energy and Industrial Strategy,Intellectual Property Office,29/09/2021,Staff Costs,People Places & Serv Directorate,Fairplay Trading Limited,INV-0071,"12,000.00",Not Applicable
Department for Business Energy and Industrial Strategy,Intellectual Property Office,10/09/2021,Telecoms,IT Directorate,Gamma Telecom Ltd,GA1618383,"2,066.72",Not Applicable
Department for Business Energy and Industrial Strategy,Intellectual Property Office,08/09/2021,Staff Costs,People Places & Serv Directorate,Bethan Roberts,732-2021,"4,036.30",Not Applicable
Department for Business Energy and Industrial Strategy,Intellectual Property Office,08/09/2021,Staff Costs,People Places & Serv Directorate,Bethan Roberts,734-2021CR,"-4,036.30",Not Applicable
Department for Business Energy and Industrial Strategy,Intellectual Property Office,08/09/2021,Staff Costs,People Places & Serv Directorate,Bethan Roberts,735-2021INV,"2,633.60",Not Applicable
Department for Business Energy and Industrial Strategy,Intellectual Property Office,29/09/2021,Staff Costs,People Places & Serv Directorate,Bethan Roberts,740-2021,"1,307.20",Not Applicable
Department for Business Energy and Industrial Strategy,Intellectual Property Office,02/09/2021,Staff Costs,People Places & Serv Directorate,People Untapped Limited,INV-1468,"2,640.00",Not Applicable
Department for Business Energy and Industrial Strategy,Intellectual Property Office,21/09/2021,Staff Costs,People Places & Serv Directorate,People Untapped Limited,INV-1490,"2,640.00",Not Applicable
Department for Business Energy and Industrial Strategy,Intellectual Property Office,29/09/2021,Staff Costs,People Places & Serv Directorate,People Untapped Limited,INV-1491,"1,320.00",Not Applicable
Department for Business Energy and Industrial Strategy,Intellectual Property Office,06/09/2021,Staff Costs,Trade Mark Directorate,Tracy Mountain,IPO-0053,"1,200.00",Not Applicable
Department for Business Energy and Industrial Strategy,Intellectual Property Office,24/09/2021,Staff Costs,People Places & Serv Directorate,Tracy Mountain,IPO-0054,"1,200.00",Not Applicable
Department for Business Energy and Industrial Strategy,Intellectual Property Office,22/09/2021,Staff Costs,People Places & Serv Directorate,Tracy Mountain,IPO-0055,600,Not Applicable
Department for Business Energy and Industrial Strategy,Intellectual Property Office,24/09/2021,Staff Costs,People Places & Serv Directorate,Tracy Mountain,IPO-0056,"1,200.00",Not Applicable
Department for Business Energy and Industrial Strategy,Intellectual Property Office,14/09/2021,Pay Costs,Projects,Deloitte LLP,75322291,"112,388.40",Not Applicable
Department for Business Energy and Industrial Strategy,Intellectual Property Office,16/09/2021,Information Technology,IT Directorate,Diligent Boardbooks Limited,CM211198,"-1,852.22",Not Applicable
Department for Business Energy and Industrial Strategy,Intellectual Property Office,01/09/2021,Pay Costs,Patent Directorate,Alexander Mann Solutions Limited,2396665,697.5,Not Applicable
Department for Business Energy and Industrial Strategy,Intellectual Property Office,03/09/2021,Pay Costs,Finance Directorate,Alexander Mann Solutions Limited,2401117,688.2,Not Applicable
Department for Business Energy and Industrial Strategy,Intellectual Property Office,03/09/2021,Pay Costs,IT Directorate,Alexander Mann Solutions Limited,2401118,"1,334.40",Not Applicable
Department for Business Energy and Industrial Strategy,Intellectual Property Office,06/09/2021,Pay Costs,IT Directorate,Alexander Mann Solutions Limited,2401119,"6,653.90",Not Applicable
Department for Business Energy and Industrial Strategy,Intellectual Property Office,06/09/2021,Pay Costs,IT Directorate,Alexander Mann Solutions Limited,2401120,"4,692.60",Not Applicable
Department for Business Energy and Industrial Strategy,Intellectual Property Office,06/09/2021,Pay Costs,Patent Directorate,Alexander Mann Solutions Limited,2401122,592.62,Not Applicable
Department for Business Energy and Industrial Strategy,Intellectual Property Office,03/09/2021,Pay Costs,IT Directorate,Alexander Mann Solutions Limited,2401123,"3,337.30",Not Applicable
Department for Business Energy and Industrial Strategy,Intellectual Property Office,06/09/2021,Pay Costs,Trade Mark Directorate,Alexander Mann Solutions Limited,2401125,754.36,Not Applicable
Department for Business Energy and Industrial Strategy,Intellectual Property Office,07/09/2021,Pay Costs,People Places & Serv Directorate,Alexander Mann Solutions Limited,2401126,"3,780.35",Not Applicable
Department for Business Energy and Industrial Strategy,Intellectual Property Office,06/09/2021,Pay Costs,People Places & Serv Directorate,Alexander Mann Solutions Limited,2401127,"10,710.97",Not Applicable
Department for Business Energy and Industrial Strategy,Intellectual Property Office,06/09/2021,Pay Costs,Trade Mark Directorate,Alexander Mann Solutions Limited,2401128,866.5,Not Applicable
Department for Business Energy and Industrial Strategy,Intellectual Property Office,06/09/2021,Pay Costs,People Places & Serv Directorate,Alexander Mann Solutions Limited,2401129,861.8,Not Applicable
Department for Business Energy and Industrial Strategy,Intellectual Property Office,06/09/2021,Pay Costs,Patent Directorate,Alexander Mann Solutions Limited,2401130,"1,269.91",Not Applicable
Department for Business Energy and Industrial Strategy,Intellectual Property Office,06/09/2021,Pay Costs,Projects,Alexander Mann Solutions Limited,2401131,"1,478.26",Not Applicable
Department for Business Energy and Industrial Strategy,Intellectual Property Office,06/09/2021,Pay Costs,Finance Directorate,Alexander Mann Solutions Limited,2401132,"3,079.62",Not Applicable
Department for Business Energy and Industrial Strategy,Intellectual Property Office,06/09/2021,Pay Costs,IT Directorate,Alexander Mann Solutions Limited,2401133,"2,255.58",Not Applicable
Department for Business Energy and Industrial Strategy,Intellectual Property Office,03/09/2021,Pay Costs,IT Directorate,Alexander Mann Solutions Limited,2401134,"3,663.00",Not Applicable
Department for Business Energy and Industrial Strategy,Intellectual Property Office,06/09/2021,Pay Costs,IT Directorate,Alexander Mann Solutions Limited,2401135,"6,159.36",Not Applicable
Department for Business Energy and Industrial Strategy,Intellectual Property Office,06/09/2021,Pay Costs,Patent Directorate,Alexander Mann Solutions Limited,2401136,"1,121.86",Not Applicable
Department for Business Energy and Industrial Strategy,Intellectual Property Office,06/09/2021,Pay Costs,Patent Directorate,Alexander Mann Solutions Limited,2401137,686.23,Not Applicable
Department for Business Energy and Industrial Strategy,Intellectual Property Office,06/09/2021,Pay Costs,Patent Directorate,Alexander Mann Solutions Limited,2401138,634.96,Not Applicable
Department for Business Energy and Industrial Strategy,Intellectual Property Office,06/09/2021,Pay Costs,Patent Directorate,Alexander Mann Solutions Limited,2401139,626.48,Not Applicable
Department for Business Energy and Industrial Strategy,Intellectual Property Office,06/09/2021,Pay Costs,Patent Directorate,Alexander Mann Solutions Limited,2401140,597.35,Not Applicable
Department for Business Energy and Industrial Strategy,Intellectual Property Office,06/09/2021,Pay Costs,Patent Directorate,Alexander Mann Solutions Limited,2401141,626.48,Not Applicable
Department for Business Energy and Industrial Strategy,Intellectual Property Office,06/09/2021,Pay Costs,Patent Directorate,Alexander Mann Solutions Limited,2401142,507.96,Not Applicable
Department for Business Energy and Industrial Strategy,Intellectual Property Office,06/09/2021,Pay Costs,Patent Directorate,Alexander Mann Solutions Limited,2401143,918.26,Not Applicable
Department for Business Energy and Industrial Strategy,Intellectual Property Office,06/09/2021,Pay Costs,IT Directorate,Alexander Mann Solutions Limited,2401144,"2,411.22",Not Applicable
Department for Business Energy and Industrial Strategy,Intellectual Property Office,06/09/2021,Pay Costs,IT Directorate,Alexander Mann Solutions Limited,2401145,"5,173.80",Not Applicable
Department for Business Energy and Industrial Strategy,Intellectual Property Office,06/09/2021,Pay Costs,IT Directorate,Alexander Mann Solutions Limited,2401146,995.11,Not Applicable
Department for Business Energy and Industrial Strategy,Intellectual Property Office,06/09/2021,Pay Costs,Patent Directorate,Alexander Mann Solutions Limited,2401147,600.29,Not Applicable
Department for Business Energy and Industrial Strategy,Intellectual Property Office,03/09/2021,Pay Costs,Trade Mark Directorate,Alexander Mann Solutions Limited,2401149,"1,188.10",Not Applicable
Department for Business Energy and Industrial Strategy,Intellectual Property Office,03/09/2021,Pay Costs,Trade Mark Directorate,Alexander Mann Solutions Limited,2401150,"1,477.63",Not Applicable
Department for Business Energy and Industrial Strategy,Intellectual Property Office,03/09/2021,Pay Costs,Patent Directorate,Alexander Mann Solutions Limited,2401151,634.96,Not Applicable
Department for Business Energy and Industrial Strategy,Intellectual Property Office,03/09/2021,Pay Costs,IT Directorate,Alexander Mann Solutions Limited,2401152,"2,772.24",Not Applicable
Department for Business Energy and Industrial Strategy,Intellectual Property Office,03/09/2021,Pay Costs,Patent Directorate,Alexander Mann Solutions Limited,2401153,558,Not Applicable
Department for Business Energy and Industrial Strategy,Intellectual Property Office,03/09/2021,Pay Costs,Patent Directorate,Alexander Mann Solutions Limited,2401154,"1,285.58",Not Applicable
Department for Business Energy and Industrial Strategy,Intellectual Property Office,03/09/2021,Pay Costs,Patent Directorate,Alexander Mann Solutions Limited,2401155,"1,244.71",Not Applicable
Department for Business Energy and Industrial Strategy,Intellectual Property Office,06/09/2021,Pay Costs,IT Directorate,Alexander Mann Solutions Limited,2401156,"3,599.58",Not Applicable
Department for Business Energy and Industrial Strategy,Intellectual Property Office,03/09/2021,Pay Costs,Patent Directorate,Alexander Mann Solutions Limited,2401157,995.77,Not Applicable
Department for Business Energy and Industrial Strategy,Intellectual Property Office,03/09/2021,Pay Costs,IT Directorate,Alexander Mann Solutions Limited,2401159,"4,410.42",Not Applicable
Department for Business Energy and Industrial Strategy,Intellectual Property Office,03/09/2021,Pay Costs,Patent Directorate,Alexander Mann Solutions Limited,2401161,971.86,Not Applicable
Department for Business Energy and Industrial Strategy,Intellectual Property Office,03/09/2021,Pay Costs,Trade Mark Directorate,Alexander Mann Solutions Limited,2401162,599.04,Not Applicable
Department for Business Energy and Industrial Strategy,Intellectual Property Office,06/09/2021,Pay Costs,Trade Mark Directorate,Alexander Mann Solutions Limited,2401163,738.82,Not Applicable
Department for Business Energy and Industrial Strategy,Intellectual Property Office,06/09/2021,Pay Costs,Trade Mark Directorate,Alexander Mann Solutions Limited,2401164,"2,216.45",Not Applicable
Department for Business Energy and Industrial Strategy,Intellectual Property Office,06/09/2021,Pay Costs,Trade Mark Directorate,Alexander Mann Solutions Limited,2401165,738.82,Not Applicable
Department for Business Energy and Industrial Strategy,Intellectual Property Office,03/09/2021,Pay Costs,Trade Mark Directorate,Alexander Mann Solutions Limited,2401166,738.82,Not Applicable
Department for Business Energy and Industrial Strategy,Intellectual Property Office,03/09/2021,Pay Costs,Trade Mark Directorate,Alexander Mann Solutions Limited,2401167,738.82,Not Applicable
Department for Business Energy and Industrial Strategy,Intellectual Property Office,06/09/2021,Pay Costs,Trade Mark Directorate,Alexander Mann Solutions Limited,2401169,738.82,Not Applicable
Department for Business Energy and Industrial Strategy,Intellectual Property Office,06/09/2021,Pay Costs,Trade Mark Directorate,Alexander Mann Solutions Limited,2401170,"1,347.84",Not Applicable
Department for Business Energy and Industrial Strategy,Intellectual Property Office,07/09/2021,Pay Costs,Trade Mark Directorate,Alexander Mann Solutions Limited,2401171,738.82,Not Applicable
Department for Business Energy and Industrial Strategy,Intellectual Property Office,06/09/2021,Pay Costs,Trade Mark Directorate,Alexander Mann Solutions Limited,2401172,738.82,Not Applicable
Department for Business Energy and Industrial Strategy,Intellectual Property Office,07/09/2021,Pay Costs,Trade Mark Directorate,Alexander Mann Solutions Limited,2401173,738.82,Not Applicable
Department for Business Energy and Industrial Strategy,Intellectual Property Office,07/09/2021,Pay Costs,Trade Mark Directorate,Alexander Mann Solutions Limited,2401174,"1,916.93",Not Applicable
Department for Business Energy and Industrial Strategy,Intellectual Property Office,07/09/2021,Pay Costs,Trade Mark Directorate,Alexander Mann Solutions Limited,2401175,"1,477.63",Not Applicable
Department for Business Energy and Industrial Strategy,Intellectual Property Office,06/09/2021,Pay Costs,Trade Mark Directorate,Alexander Mann Solutions Limited,2401176,599.04,Not Applicable
Department for Business Energy and Industrial Strategy,Intellectual Property Office,06/09/2021,Pay Costs,Trade Mark Directorate,Alexander Mann Solutions Limited,2401177,738.82,Not Applicable
Department for Business Energy and Industrial Strategy,Intellectual Property Office,06/09/2021,Pay Costs,Trade Mark Directorate,Alexander Mann Solutions Limited,2401178,738.82,Not Applicable
Department for Business Energy and Industrial Strategy,Intellectual Property Office,06/09/2021,Pay Costs,Trade Mark Directorate,Alexander Mann Solutions Limited,2401179,738.82,Not Applicable
Department for Business Energy and Industrial Strategy,Intellectual Property Office,06/09/2021,Pay Costs,Trade Mark Directorate,Alexander Mann Solutions Limited,2401180,"1,337.86",Not Applicable
Department for Business Energy and Industrial Strategy,Intellectual Property Office,06/09/2021,Pay Costs,Trade Mark Directorate,Alexander Mann Solutions Limited,2401181,738.82,Not Applicable
Department for Business Energy and Industrial Strategy,Intellectual Property Office,06/09/2021,Pay Costs,Patent Directorate,Alexander Mann Solutions Limited,2401183,663.84,Not Applicable
Department for Business Energy and Industrial Strategy,Intellectual Property Office,07/09/2021,Pay Costs,Patent Directorate,Alexander Mann Solutions Limited,2401184,558,Not Applicable
Department for Business Energy and Industrial Strategy,Intellectual Property Office,07/09/2021,Pay Costs,IT Directorate,Alexander Mann Solutions Limited,2401185,"3,024.29",Not Applicable
Department for Business Energy and Industrial Strategy,Intellectual Property Office,06/09/2021,Pay Costs,Patent Directorate,Alexander Mann Solutions Limited,2401186,720.76,Not Applicable
Department for Business Energy and Industrial Strategy,Intellectual Property Office,07/09/2021,Pay Costs,IT Directorate,Alexander Mann Solutions Limited,2401187,"5,912.93",Not Applicable
Department for Business Energy and Industrial Strategy,Intellectual Property Office,06/09/2021,Pay Costs,Patent Directorate,Alexander Mann Solutions Limited,2401188,600.29,Not Applicable
Department for Business Energy and Industrial Strategy,Intellectual Property Office,06/09/2021,Pay Costs,Patent Directorate,Alexander Mann Solutions Limited,2401189,741.18,Not Applicable
Department for Business Energy and Industrial Strategy,Intellectual Property Office,06/09/2021,Pay Costs,Patent Directorate,Alexander Mann Solutions Limited,2401190,600.29,Not Applicable
Department for Business Energy and Industrial Strategy,Intellectual Property Office,07/09/2021,Pay Costs,Projects,Alexander Mann Solutions Limited,2401191,"2,142.18",Not Applicable
Department for Business Energy and Industrial Strategy,Intellectual Property Office,10/09/2021,Pay Costs,Finance Directorate,Alexander Mann Solutions Limited,2405589,585.9,Not Applicable
Department for Business Energy and Industrial Strategy,Intellectual Property Office,13/09/2021,Pay Costs,IT Directorate,Alexander Mann Solutions Limited,2405590,"4,342.75",Not Applicable
Department for Business Energy and Industrial Strategy,Intellectual Property Office,10/09/2021,Pay Costs,IT Directorate,Alexander Mann Solutions Limited,2405591,"5,385.60",Not Applicable
Department for Business Energy and Industrial Strategy,Intellectual Property Office,10/09/2021,Pay Costs,Trade Mark Directorate,Alexander Mann Solutions Limited,2405595,601.45,Not Applicable
Department for Business Energy and Industrial Strategy,Intellectual Property Office,10/09/2021,Pay Costs,People Places & Serv Directorate,Alexander Mann Solutions Limited,2405596,698.76,Not Applicable
Department for Business Energy and Industrial Strategy,Intellectual Property Office,10/09/2021,Pay Costs,Patent Directorate,Alexander Mann Solutions Limited,2405597,507.96,Not Applicable
Department for Business Energy and Industrial Strategy,Intellectual Property Office,10/09/2021,Pay Costs,Finance Directorate,Alexander Mann Solutions Limited,2405598,"1,847.77",Not Applicable
Department for Business Energy and Industrial Strategy,Intellectual Property Office,10/09/2021,Pay Costs,IT Directorate,Alexander Mann Solutions Limited,2405599,"1,804.46",Not Applicable
Department for Business Energy and Industrial Strategy,Intellectual Property Office,15/09/2021,Pay Costs,IT Directorate,Alexander Mann Solutions Limited,2405600,"5,543.42",Not Applicable
Department for Business Energy and Industrial Strategy,Intellectual Property Office,10/09/2021,Pay Costs,Finance Directorate,Alexander Mann Solutions Limited,2405602,558,Not Applicable
Department for Business Energy and Industrial Strategy,Intellectual Property Office,10/09/2021,Pay Costs,Patent Directorate,Alexander Mann Solutions Limited,2405604,516.43,Not Applicable
Department for Business Energy and Industrial Strategy,Intellectual Property Office,10/09/2021,Pay Costs,Patent Directorate,Alexander Mann Solutions Limited,2405607,507.96,Not Applicable
Department for Business Energy and Industrial Strategy,Intellectual Property Office,13/09/2021,Pay Costs,Patent Directorate,Alexander Mann Solutions Limited,2405608,507.96,Not Applicable
Department for Business Energy and Industrial Strategy,Intellectual Property Office,13/09/2021,Pay Costs,Patent Directorate,Alexander Mann Solutions Limited,2405609,827.11,Not Applicable
Department for Business Energy and Industrial Strategy,Intellectual Property Office,10/09/2021,Pay Costs,IT Directorate,Alexander Mann Solutions Limited,2405610,786.98,Not Applicable
Department for Business Energy and Industrial Strategy,Intellectual Property Office,10/09/2021,Pay Costs,Trade Mark Directorate,Alexander Mann Solutions Limited,2405612,601.45,Not Applicable
Department for Business Energy and Industrial Strategy,Intellectual Property Office,10/09/2021,Pay Costs,IT Directorate,Alexander Mann Solutions Limited,2405614,"5,544.48",Not Applicable
Department for Business Energy and Industrial Strategy,Intellectual Property Office,13/09/2021,Pay Costs,Patent Directorate,Alexander Mann Solutions Limited,2405615,558,Not Applicable
Department for Business Energy and Industrial Strategy,Intellectual Property Office,10/09/2021,Pay Costs,Patent Directorate,Alexander Mann Solutions Limited,2405616,511.5,Not Applicable
Department for Business Energy and Industrial Strategy,Intellectual Property Office,10/09/2021,Pay Costs,IT Directorate,Alexander Mann Solutions Limited,2405617,"4,249.49",Not Applicable
Department for Business Energy and Industrial Strategy,Intellectual Property Office,10/09/2021,Pay Costs,IT Directorate,Alexander Mann Solutions Limited,2405620,"7,938.76",Not Applicable
Department for Business Energy and Industrial Strategy,Intellectual Property Office,10/09/2021,Pay Costs,Patent Directorate,Alexander Mann Solutions Limited,2405621,558,Not Applicable
Department for Business Energy and Industrial Strategy,Intellectual Property Office,10/09/2021,Pay Costs,Trade Mark Directorate,Alexander Mann Solutions Limited,2405622,601.45,Not Applicable
Department for Business Energy and Industrial Strategy,Intellectual Property Office,10/09/2021,Pay Costs,Trade Mark Directorate,Alexander Mann Solutions Limited,2405624,601.45,Not Applicable
Department for Business Energy and Industrial Strategy,Intellectual Property Office,10/09/2021,Pay Costs,Trade Mark Directorate,Alexander Mann Solutions Limited,2405626,589.06,Not Applicable
Department for Business Energy and Industrial Strategy,Intellectual Property Office,13/09/2021,Pay Costs,Trade Mark Directorate,Alexander Mann Solutions Limited,2405627,"1,257.98",Not Applicable
Department for Business Energy and Industrial Strategy,Intellectual Property Office,10/09/2021,Pay Costs,Trade Mark Directorate,Alexander Mann Solutions Limited,2405628,589.06,Not Applicable
Department for Business Energy and Industrial Strategy,Intellectual Property Office,13/09/2021,Pay Costs,Trade Mark Directorate,Alexander Mann Solutions Limited,2405630,918.53,Not Applicable
Department for Business Energy and Industrial Strategy,Intellectual Property Office,10/09/2021,Pay Costs,Trade Mark Directorate,Alexander Mann Solutions Limited,2405631,589.06,Not Applicable
Department for Business Energy and Industrial Strategy,Intellectual Property Office,13/09/2021,Pay Costs,Trade Mark Directorate,Alexander Mann Solutions Limited,2405632,"1,327.87",Not Applicable
Department for Business Energy and Industrial Strategy,Intellectual Property Office,13/09/2021,Pay Costs,Trade Mark Directorate,Alexander Mann Solutions Limited,2405633,738.82,Not Applicable
Department for Business Energy and Industrial Strategy,Intellectual Property Office,10/09/2021,Pay Costs,Trade Mark Directorate,Alexander Mann Solutions Limited,2405634,589.06,Not Applicable
Department for Business Energy and Industrial Strategy,Intellectual Property Office,10/09/2021,Pay Costs,Trade Mark Directorate,Alexander Mann Solutions Limited,2405635,599.04,Not Applicable
Department for Business Energy and Industrial Strategy,Intellectual Property Office,10/09/2021,Pay Costs,Trade Mark Directorate,Alexander Mann Solutions Limited,2405636,611.64,Not Applicable
Department for Business Energy and Industrial Strategy,Intellectual Property Office,13/09/2021,Pay Costs,IT Directorate,Alexander Mann Solutions Limited,2405637,"7,560.72",Not Applicable
Department for Business Energy and Industrial Strategy,Intellectual Property Office,13/09/2021,Pay Costs,Patent Directorate,Alexander Mann Solutions Limited,2405638,"1,315.66",Not Applicable
Department for Business Energy and Industrial Strategy,Intellectual Property Office,13/09/2021,Pay Costs,IT Directorate,Alexander Mann Solutions Limited,2405639,"1,067.52",Not Applicable
Department for Business Energy and Industrial Strategy,Intellectual Property Office,10/09/2021,Pay Costs,IT Directorate,Alexander Mann Solutions Limited,2405640,"2,268.22",Not Applicable
Department for Business Energy and Industrial Strategy,Intellectual Property Office,10/09/2021,Pay Costs,Patent Directorate,Alexander Mann Solutions Limited,2405641,553.36,Not Applicable
Department for Business Energy and Industrial Strategy,Intellectual Property Office,10/09/2021,Pay Costs,IT Directorate,Alexander Mann Solutions Limited,2405642,"6,652.04",Not Applicable
Department for Business Energy and Industrial Strategy,Intellectual Property Office,10/09/2021,Pay Costs,IT Directorate,Alexander Mann Solutions Limited,2405643,"2,454.26",Not Applicable
Department for Business Energy and Industrial Strategy,Intellectual Property Office,10/09/2021,Pay Costs,IT Directorate,Alexander Mann Solutions Limited,2405644,"3,272.35",Not Applicable
Department for Business Energy and Industrial Strategy,Intellectual Property Office,10/09/2021,Pay Costs,Patent Directorate,Alexander Mann Solutions Limited,2405645,728.4,Not Applicable
Department for Business Energy and Industrial Strategy,Intellectual Property Office,10/09/2021,Pay Costs,Patent Directorate,Alexander Mann Solutions Limited,2405646,558.34,Not Applicable
Department for Business Energy and Industrial Strategy,Intellectual Property Office,10/09/2021,Pay Costs,IT Directorate,Alexander Mann Solutions Limited,2405648,"7,056.07",Not Applicable
Department for Business Energy and Industrial Strategy,Intellectual Property Office,13/09/2021,Pay Costs,Projects,Alexander Mann Solutions Limited,2405649,"1,713.74",Not Applicable
Department for Business Energy and Industrial Strategy,Intellectual Property Office,10/09/2021,Pay Costs,IT Directorate,Alexander Mann Solutions Limited,2405650,"7,362.79",Not Applicable
Department for Business Energy and Industrial Strategy,Intellectual Property Office,13/09/2021,Pay Costs,Projects,Alexander Mann Solutions Limited,2405651,"10,809.65",Not Applicable
Department for Business Energy and Industrial Strategy,Intellectual Property Office,21/09/2021,Pay Costs,Finance Directorate,Alexander Mann Solutions Limited,2409847,546.84,Not Applicable
Department for Business Energy and Industrial Strategy,Intellectual Property Office,21/09/2021,Pay Costs,Finance Directorate,Alexander Mann Solutions Limited,2409848,688.2,Not Applicable
Department for Business Energy and Industrial Strategy,Intellectual Property Office,21/09/2021,Pay Costs,IT Directorate,Alexander Mann Solutions Limited,2409849,"2,930.40",Not Applicable
Department for Business Energy and Industrial Strategy,Intellectual Property Office,20/09/2021,Pay Costs,Patent Directorate,Alexander Mann Solutions Limited,2409851,592.62,Not Applicable
Department for Business Energy and Industrial Strategy,Intellectual Property Office,22/09/2021,Pay Costs,IT Directorate,Alexander Mann Solutions Limited,2409852,5671.25,Not Applicable
Department for Business Energy and Industrial Strategy,Intellectual Property Office,20/09/2021,Pay Costs,Trade Mark Directorate,Alexander Mann Solutions Limited,2409854,754.36,Not Applicable
Department for Business Energy and Industrial Strategy,Intellectual Property Office,22/09/2021,Pay Costs,IT Directorate,Alexander Mann Solutions Limited,2409855,9848.94,Not Applicable
Department for Business Energy and Industrial Strategy,Intellectual Property Office,20/09/2021,Pay Costs,Patent Directorate,Alexander Mann Solutions Limited,2409856,634.96,Not Applicable
Department for Business Energy and Industrial Strategy,Intellectual Property Office,20/09/2021,Pay Costs,Projects,Alexander Mann Solutions Limited,2409857,3695.64,Not Applicable
Department for Business Energy and Industrial Strategy,Intellectual Property Office,22/09/2021,Pay Costs,IT Directorate,Alexander Mann Solutions Limited,2409858,4893.34,Not Applicable
Department for Business Energy and Industrial Strategy,Intellectual Property Office,21/09/2021,Pay Costs,IT Directorate,Alexander Mann Solutions Limited,2409859,2255.58,Not Applicable
Department for Business Energy and Industrial Strategy,Intellectual Property Office,21/09/2021,Pay Costs,IT Directorate,Alexander Mann Solutions Limited,2409860,3217.58,Not Applicable
Department for Business Energy and Industrial Strategy,Intellectual Property Office,21/09/2021,Pay Costs,Patent Directorate,Alexander Mann Solutions Limited,2409861,623.26,Not Applicable
Department for Business Energy and Industrial Strategy,Intellectual Property Office,23/09/2021,Pay Costs,Finance Directorate,Alexander Mann Solutions Limited,2409862,688.2,Not Applicable
Department for Business Energy and Industrial Strategy,Intellectual Property Office,20/09/2021,Pay Costs,Patent Directorate,Alexander Mann Solutions Limited,2409863,741.11,Not Applicable
Department for Business Energy and Industrial Strategy,Intellectual Property Office,20/09/2021,Pay Costs,Patent Directorate,Alexander Mann Solutions Limited,2409864,634.96,Not Applicable
Department for Business Energy and Industrial Strategy,Intellectual Property Office,21/09/2021,Pay Costs,Patent Directorate,Alexander Mann Solutions Limited,2409865,626.48,Not Applicable
Department for Business Energy and Industrial Strategy,Intellectual Property Office,21/09/2021,Pay Costs,Patent Directorate,Alexander Mann Solutions Limited,2409866,626.48,Not Applicable
Department for Business Energy and Industrial Strategy,Intellectual Property Office,20/09/2021,Pay Costs,IT Directorate,Alexander Mann Solutions Limited,2409869,6540.54,Not Applicable
Department for Business Energy and Industrial Strategy,Intellectual Property Office,21/09/2021,Pay Costs,IT Directorate,Alexander Mann Solutions Limited,2409870,4801.33,Not Applicable
Department for Business Energy and Industrial Strategy,Intellectual Property Office,21/09/2021,Pay Costs,IT Directorate,Alexander Mann Solutions Limited,2409871,982.1,Not Applicable
Department for Business Energy and Industrial Strategy,Intellectual Property Office,20/09/2021,Pay Costs,Trade Mark Directorate,Alexander Mann Solutions Limited,2409873,764.56,Not Applicable
Department for Business Energy and Industrial Strategy,Intellectual Property Office,20/09/2021,Pay Costs,Trade Mark Directorate,Alexander Mann Solutions Limited,2409874,754.36,Not Applicable
Department for Business Energy and Industrial Strategy,Intellectual Property Office,20/09/2021,Pay Costs,IT Directorate,Alexander Mann Solutions Limited,2409875,2772.24,Not Applicable
Department for Business Energy and Industrial Strategy,Intellectual Property Office,20/09/2021,Pay Costs,Patent Directorate,Alexander Mann Solutions Limited,2409876,627.76,Not Applicable
Department for Business Energy and Industrial Strategy,Intellectual Property Office,20/09/2021,Pay Costs,IT Directorate,Alexander Mann Solutions Limited,2409877,2419.8,Not Applicable
Department for Business Energy and Industrial Strategy,Intellectual Property Office,20/09/2021,Pay Costs,Patent Directorate,Alexander Mann Solutions Limited,2409878,622.36,Not Applicable
Department for Business Energy and Industrial Strategy,Intellectual Property Office,20/09/2021,Pay Costs,IT Directorate,Alexander Mann Solutions Limited,2409879,2159.75,Not Applicable
Department for Business Energy and Industrial Strategy,Intellectual Property Office,20/09/2021,Pay Costs,Patent Directorate,Alexander Mann Solutions Limited,2409880,622.36,Not Applicable
Department for Business Energy and Industrial Strategy,Intellectual Property Office,20/09/2021,Pay Costs,IT Directorate,Alexander Mann Solutions Limited,2409881,4410.42,Not Applicable
Department for Business Energy and Industrial Strategy,Intellectual Property Office,20/09/2021,Pay Costs,Patent Directorate,Alexander Mann Solutions Limited,2409882,688.2,Not Applicable
Department for Business Energy and Industrial Strategy,Intellectual Property Office,22/09/2021,Pay Costs,Trade Mark Directorate,Alexander Mann Solutions Limited,2409883,1366,Not Applicable
Department for Business Energy and Industrial Strategy,Intellectual Property Office,20/09/2021,Pay Costs,Trade Mark Directorate,Alexander Mann Solutions Limited,2409884,754.36,Not Applicable
Department for Business Energy and Industrial Strategy,Intellectual Property Office,21/09/2021,Pay Costs,Trade Mark Directorate,Alexander Mann Solutions Limited,2409885,1366,Not Applicable
Department for Business Energy and Industrial Strategy,Intellectual Property Office,20/09/2021,Pay Costs,Trade Mark Directorate,Alexander Mann Solutions Limited,2409886,754.36,Not Applicable
Department for Business Energy and Industrial Strategy,Intellectual Property Office,21/09/2021,Pay Costs,Trade Mark Directorate,Alexander Mann Solutions Limited,2409887,764.56,Not Applicable
Department for Business Energy and Industrial Strategy,Intellectual Property Office,20/09/2021,Pay Costs,Trade Mark Directorate,Alexander Mann Solutions Limited,2409888,738.82,Not Applicable
Department for Business Energy and Industrial Strategy,Intellectual Property Office,20/09/2021,Pay Costs,Trade Mark Directorate,Alexander Mann Solutions Limited,2409889,738.82,Not Applicable
Department for Business Energy and Industrial Strategy,Intellectual Property Office,21/09/2021,Pay Costs,Trade Mark Directorate,Alexander Mann Solutions Limited,2409890,1916.93,Not Applicable
Department for Business Energy and Industrial Strategy,Intellectual Property Office,20/09/2021,Pay Costs,Trade Mark Directorate,Alexander Mann Solutions Limited,2409891,599.04,Not Applicable
Department for Business Energy and Industrial Strategy,Intellectual Property Office,20/09/2021,Pay Costs,Trade Mark Directorate,Alexander Mann Solutions Limited,2409892,1317.89,Not Applicable
Department for Business Energy and Industrial Strategy,Intellectual Property Office,20/09/2021,Pay Costs,Trade Mark Directorate,Alexander Mann Solutions Limited,2409893,738.82,Not Applicable
Department for Business Energy and Industrial Strategy,Intellectual Property Office,21/09/2021,Pay Costs,Trade Mark Directorate,Alexander Mann Solutions Limited,2409894,589.06,Not Applicable
Department for Business Energy and Industrial Strategy,Intellectual Property Office,20/09/2021,Pay Costs,Trade Mark Directorate,Alexander Mann Solutions Limited,2409895,599.04,Not Applicable
Department for Business Energy and Industrial Strategy,Intellectual Property Office,20/09/2021,Pay Costs,Trade Mark Directorate,Alexander Mann Solutions Limited,2409896,738.82,Not Applicable
Department for Business Energy and Industrial Strategy,Intellectual Property Office,20/09/2021,Pay Costs,Trade Mark Directorate,Alexander Mann Solutions Limited,2409897,738.82,Not Applicable
Department for Business Energy and Industrial Strategy,Intellectual Property Office,20/09/2021,Pay Costs,Trade Mark Directorate,Alexander Mann Solutions Limited,2409898,599.04,Not Applicable
Department for Business Energy and Industrial Strategy,Intellectual Property Office,20/09/2021,Pay Costs,Trade Mark Directorate,Alexander Mann Solutions Limited,2409900,738.82,Not Applicable
Department for Business Energy and Industrial Strategy,Intellectual Property Office,20/09/2021,Pay Costs,Trade Mark Directorate,Alexander Mann Solutions Limited,2409901,754.36,Not Applicable
Department for Business Energy and Industrial Strategy,Intellectual Property Office,20/09/2021,Pay Costs,IT Directorate,Alexander Mann Solutions Limited,2409902,3780.36,Not Applicable
Department for Business Energy and Industrial Strategy,Intellectual Property Office,22/09/2021,Pay Costs,IT Directorate,Alexander Mann Solutions Limited,2409904,1334.4,Not Applicable
Department for Business Energy and Industrial Strategy,Intellectual Property Office,20/09/2021,Pay Costs,Patent Directorate,Alexander Mann Solutions Limited,2409905,697.5,Not Applicable
Department for Business Energy and Industrial Strategy,Intellectual Property Office,20/09/2021,Pay Costs,IT Directorate,Alexander Mann Solutions Limited,2409906,4090.44,Not Applicable
Department for Business Energy and Industrial Strategy,Intellectual Property Office,20/09/2021,Pay Costs,Patent Directorate,Alexander Mann Solutions Limited,2409907,600.29,Not Applicable
Department for Business Energy and Industrial Strategy,Intellectual Property Office,20/09/2021,Pay Costs,Patent Directorate,Alexander Mann Solutions Limited,2409908,515.11,Not Applicable
Department for Business Energy and Industrial Strategy,Intellectual Property Office,20/09/2021,Pay Costs,Patent Directorate,Alexander Mann Solutions Limited,2409909,600.29,Not Applicable
Department for Business Energy and Industrial Strategy,Intellectual Property Office,20/09/2021,Pay Costs,IT Directorate,Alexander Mann Solutions Limited,2409910,3920.04,Not Applicable
Department for Business Energy and Industrial Strategy,Intellectual Property Office,21/09/2021,Pay Costs,Projects,Alexander Mann Solutions Limited,2409911,2142.18,Not Applicable
Department for Business Energy and Industrial Strategy,Intellectual Property Office,21/09/2021,Pay Costs,IT Directorate,Alexander Mann Solutions Limited,2409912,6237.54,Not Applicable
Department for Business Energy and Industrial Strategy,Intellectual Property Office,20/09/2021,Pay Costs,IT Directorate,Alexander Mann Solutions Limited,2409913,4090.44,Not Applicable
Department for Business Energy and Industrial Strategy,Intellectual Property Office,21/09/2021,Pay Costs,Projects,Alexander Mann Solutions Limited,2409914,756.07,Not Applicable
Department for Business Energy and Industrial Strategy,Intellectual Property Office,20/09/2021,Pay Costs,Patent Directorate,Alexander Mann Solutions Limited,2409915,580.86,Not Applicable
Department for Business Energy and Industrial Strategy,Intellectual Property Office,24/09/2021,Pay Costs,Patent Directorate,Alexander Mann Solutions Limited,2414067,592.62,Not Applicable
Department for Business Energy and Industrial Strategy,Intellectual Property Office,24/09/2021,Pay Costs,IT Directorate,Alexander Mann Solutions Limited,2414068,3510.35,Not Applicable
Department for Business Energy and Industrial Strategy,Intellectual Property Office,28/09/2021,Pay Costs,People Places & Serv Directorate,Alexander Mann Solutions Limited,2414070,20791.9,Not Applicable
Department for Business Energy and Industrial Strategy,Intellectual Property Office,28/09/2021,Pay Costs,People Places & Serv Directorate,Alexander Mann Solutions Limited,2414071,630.06,Not Applicable
Department for Business Energy and Industrial Strategy,Intellectual Property Office,24/09/2021,Pay Costs,IT Directorate,Alexander Mann Solutions Limited,2414073,3418.79,Not Applicable
Department for Business Energy and Industrial Strategy,Intellectual Property Office,28/09/2021,Pay Costs,People Places & Serv Directorate,Alexander Mann Solutions Limited,2414074,1723.61,Not Applicable
Department for Business Energy and Industrial Strategy,Intellectual Property Office,24/09/2021,Pay Costs,Projects,Alexander Mann Solutions Limited,2414075,3695.64,Not Applicable
Department for Business Energy and Industrial Strategy,Intellectual Property Office,24/09/2021,Pay Costs,IT Directorate,Alexander Mann Solutions Limited,2414076,2742.94,Not Applicable
Department for Business Energy and Industrial Strategy,Intellectual Property Office,24/09/2021,Pay Costs,Finance Directorate,Alexander Mann Solutions Limited,2414077,6159.24,Not Applicable
Department for Business Energy and Industrial Strategy,Intellectual Property Office,24/09/2021,Pay Costs,IT Directorate,Alexander Mann Solutions Limited,2414078,2255.58,Not Applicable
Department for Business Energy and Industrial Strategy,Intellectual Property Office,28/09/2021,Pay Costs,IT Directorate,Alexander Mann Solutions Limited,2414079,6159.36,Not Applicable
Department for Business Energy and Industrial Strategy,Intellectual Property Office,24/09/2021,Pay Costs,Finance Directorate,Alexander Mann Solutions Limited,2414080,688.2,Not Applicable
Department for Business Energy and Industrial Strategy,Intellectual Property Office,24/09/2021,Pay Costs,Patent Directorate,Alexander Mann Solutions Limited,2414081,620.57,Not Applicable
Department for Business Energy and Industrial Strategy,Intellectual Property Office,24/09/2021,Pay Costs,Patent Directorate,Alexander Mann Solutions Limited,2414085,626.48,Not Applicable
Department for Business Energy and Industrial Strategy,Intellectual Property Office,24/09/2021,Pay Costs,Patent Directorate,Alexander Mann Solutions Limited,2414086,740.29,Not Applicable
Department for Business Energy and Industrial Strategy,Intellectual Property Office,24/09/2021,Pay Costs,IT Directorate,Alexander Mann Solutions Limited,2414087,3611.94,Not Applicable
Department for Business Energy and Industrial Strategy,Intellectual Property Office,24/09/2021,Pay Costs,IT Directorate,Alexander Mann Solutions Limited,2414088,3047.02,Not Applicable
Department for Business Energy and Industrial Strategy,Intellectual Property Office,28/09/2021,Pay Costs,Projects,Alexander Mann Solutions Limited,2414089,15121.44,Not Applicable
Department for Business Energy and Industrial Strategy,Intellectual Property Office,28/09/2021,Pay Costs,Projects,Alexander Mann Solutions Limited,2414090,14331.17,Not Applicable
Department for Business Energy and Industrial Strategy,Intellectual Property Office,24/09/2021,Pay Costs,IT Directorate,Alexander Mann Solutions Limited,2414091,1008.12,Not Applicable
Department for Business Energy and Industrial Strategy,Intellectual Property Office,24/09/2021,Pay Costs,Patent Directorate,Alexander Mann Solutions Limited,2414092,608.4,Not Applicable
Department for Business Energy and Industrial Strategy,Intellectual Property Office,24/09/2021,Pay Costs,Trade Mark Directorate,Alexander Mann Solutions Limited,2414093,754.36,Not Applicable
Department for Business Energy and Industrial Strategy,Intellectual Property Office,24/09/2021,Pay Costs,Trade Mark Directorate,Alexander Mann Solutions Limited,2414094,601.45,Not Applicable
Department for Business Energy and Industrial Strategy,Intellectual Property Office,24/09/2021,Pay Costs,Patent Directorate,Alexander Mann Solutions Limited,2414095,634.96,Not Applicable
Department for Business Energy and Industrial Strategy,Intellectual Property Office,24/09/2021,Pay Costs,IT Directorate,Alexander Mann Solutions Limited,2414096,2772.24,Not Applicable
Department for Business Energy and Industrial Strategy,Intellectual Property Office,28/09/2021,Pay Costs,Patent Directorate,Alexander Mann Solutions Limited,2414097,1116,Not Applicable
Department for Business Energy and Industrial Strategy,Intellectual Property Office,24/09/2021,Pay Costs,Patent Directorate,Alexander Mann Solutions Limited,2414098,618.46,Not Applicable
Department for Business Energy and Industrial Strategy,Intellectual Property Office,24/09/2021,Pay Costs,IT Directorate,Alexander Mann Solutions Limited,2414099,2106.42,Not Applicable
Department for Business Energy and Industrial Strategy,Intellectual Property Office,24/09/2021,Pay Costs,IT Directorate,Alexander Mann Solutions Limited,2414100,3599.58,Not Applicable
Department for Business Energy and Industrial Strategy,Intellectual Property Office,24/09/2021,Pay Costs,IT Directorate,Alexander Mann Solutions Limited,2414101,4410.42,Not Applicable
Department for Business Energy and Industrial Strategy,Intellectual Property Office,24/09/2021,Pay Costs,Patent Directorate,Alexander Mann Solutions Limited,2414102,688.2,Not Applicable
Department for Business Energy and Industrial Strategy,Intellectual Property Office,24/09/2021,Pay Costs,Trade Mark Directorate,Alexander Mann Solutions Limited,2414103,754.36,Not Applicable
Department for Business Energy and Industrial Strategy,Intellectual Property Office,24/09/2021,Pay Costs,Trade Mark Directorate,Alexander Mann Solutions Limited,2414104,754.36,Not Applicable
Department for Business Energy and Industrial Strategy,Intellectual Property Office,24/09/2021,Pay Costs,Trade Mark Directorate,Alexander Mann Solutions Limited,2414105,1121.34,Not Applicable
Department for Business Energy and Industrial Strategy,Intellectual Property Office,24/09/2021,Pay Costs,Trade Mark Directorate,Alexander Mann Solutions Limited,2414106,754.36,Not Applicable
Department for Business Energy and Industrial Strategy,Intellectual Property Office,24/09/2021,Pay Costs,Trade Mark Directorate,Alexander Mann Solutions Limited,2414107,754.36,Not Applicable
Department for Business Energy and Industrial Strategy,Intellectual Property Office,24/09/2021,Pay Costs,Trade Mark Directorate,Alexander Mann Solutions Limited,2414108,754.36,Not Applicable
Department for Business Energy and Industrial Strategy,Intellectual Property Office,24/09/2021,Pay Costs,Trade Mark Directorate,Alexander Mann Solutions Limited,2414109,601.45,Not Applicable
Department for Business Energy and Industrial Strategy,Intellectual Property Office,24/09/2021,Pay Costs,Trade Mark Directorate,Alexander Mann Solutions Limited,2414110,738.82,Not Applicable
Department for Business Energy and Industrial Strategy,Intellectual Property Office,24/09/2021,Pay Costs,Trade Mark Directorate,Alexander Mann Solutions Limited,2414111,677.9,Not Applicable
Department for Business Energy and Industrial Strategy,Intellectual Property Office,24/09/2021,Pay Costs,Trade Mark Directorate,Alexander Mann Solutions Limited,2414112,754.36,Not Applicable
Department for Business Energy and Industrial Strategy,Intellectual Property Office,24/09/2021,Pay Costs,Trade Mark Directorate,Alexander Mann Solutions Limited,2414113,754.36,Not Applicable
Department for Business Energy and Industrial Strategy,Intellectual Property Office,24/09/2021,Pay Costs,Trade Mark Directorate,Alexander Mann Solutions Limited,2414114,589.06,Not Applicable
Department for Business Energy and Industrial Strategy,Intellectual Property Office,24/09/2021,Pay Costs,Trade Mark Directorate,Alexander Mann Solutions Limited,2414115,738.82,Not Applicable
Department for Business Energy and Industrial Strategy,Intellectual Property Office,24/09/2021,Pay Costs,Trade Mark Directorate,Alexander Mann Solutions Limited,2414117,754.36,Not Applicable
Department for Business Energy and Industrial Strategy,Intellectual Property Office,24/09/2021,Pay Costs,Trade Mark Directorate,Alexander Mann Solutions Limited,2414118,738.82,Not Applicable
Department for Business Energy and Industrial Strategy,Intellectual Property Office,28/09/2021,Pay Costs,Trade Mark Directorate,Alexander Mann Solutions Limited,2414120,738.82,Not Applicable
Department for Business Energy and Industrial Strategy,Intellectual Property Office,24/09/2021,Pay Costs,Trade Mark Directorate,Alexander Mann Solutions Limited,2414121,754.36,Not Applicable
Department for Business Energy and Industrial Strategy,Intellectual Property Office,24/09/2021,Pay Costs,Trade Mark Directorate,Alexander Mann Solutions Limited,2414122,738.82,Not Applicable
Department for Business Energy and Industrial Strategy,Intellectual Property Office,24/09/2021,Pay Costs,Trade Mark Directorate,Alexander Mann Solutions Limited,2414123,754.36,Not Applicable
Department for Business Energy and Industrial Strategy,Intellectual Property Office,24/09/2021,Pay Costs,Patent Directorate,Alexander Mann Solutions Limited,2414125,702.16,Not Applicable
Department for Business Energy and Industrial Strategy,Intellectual Property Office,24/09/2021,Pay Costs,IT Directorate,Alexander Mann Solutions Limited,2414126,7391.16,Not Applicable
Department for Business Energy and Industrial Strategy,Intellectual Property Office,24/09/2021,Pay Costs,IT Directorate,Alexander Mann Solutions Limited,2414127,4090.44,Not Applicable
Department for Business Energy and Industrial Strategy,Intellectual Property Office,24/09/2021,Pay Costs,Patent Directorate,Alexander Mann Solutions Limited,2414128,600.29,Not Applicable
Department for Business Energy and Industrial Strategy,Intellectual Property Office,24/09/2021,Pay Costs,Patent Directorate,Alexander Mann Solutions Limited,2414130,600.29,Not Applicable
Department for Business Energy and Industrial Strategy,Intellectual Property Office,24/09/2021,Pay Costs,IT Directorate,Alexander Mann Solutions Limited,2414131,3920.04,Not Applicable
Department for Business Energy and Industrial Strategy,Intellectual Property Office,28/09/2021,Pay Costs,Projects,Alexander Mann Solutions Limited,2414132,2570.62,Not Applicable
Department for Business Energy and Industrial Strategy,Intellectual Property Office,24/09/2021,Pay Costs,IT Directorate,Alexander Mann Solutions Limited,2414133,3465.3,Not Applicable
Department for Business Energy and Industrial Strategy,Intellectual Property Office,24/09/2021,Pay Costs,IT Directorate,Alexander Mann Solutions Limited,2414134,4090.44,Not Applicable
Department for Business Energy and Industrial Strategy,Intellectual Property Office,28/09/2021,Pay Costs,Projects,Alexander Mann Solutions Limited,2414135,8315.11,Not Applicable
Department for Business Energy and Industrial Strategy,Intellectual Property Office,28/09/2021,Pay Costs,IT Directorate,Alexander Mann Solutions Limited,2414136,11453.23,Not Applicable
Department for Business Energy and Industrial Strategy,Intellectual Property Office,24/09/2021,Pay Costs,Projects,Alexander Mann Solutions Limited,2414137,3780.36,Not Applicable
Department for Business Energy and Industrial Strategy,Intellectual Property Office,24/09/2021,Pay Costs,Patent Directorate,Alexander Mann Solutions Limited,2414138,663.84,Not Applicable
Department for Business Energy and Industrial Strategy,Intellectual Property Office,13/09/2021,Pay Costs,Patent Directorate,Alexander Mann Solutions Limited,27408,-623.1,Not Applicable
Department for Business Energy and Industrial Strategy,Intellectual Property Office,09/09/2021,Information Technology,People Places & Serv Directorate,Cyberis Limited,INV01990,1050,Not Applicable
Department for Business Energy and Industrial Strategy,Intellectual Property Office,06/09/2021,Staff Costs,People Places & Serv Directorate,Eliesha Training Ltd,22408,1782,Not Applicable
Department for Business Energy and Industrial Strategy,Intellectual Property Office,28/09/2021,Information Technology,People Places & Serv Directorate,Extensis,INV00074166,2660,Not Applicable
Department for Business Energy and Industrial Strategy,Intellectual Property Office,23/09/2021,Miscellaneous Expenses General,People Places & Serv Directorate,Malikshaw Limited,293,104004,Not Applicable
Department for Business Energy and Industrial Strategy,Intellectual Property Office,21/09/2021,Information Technology,IT Directorate,Empyrean Digital Ltd,EMP-473,8100,Not Applicable
Department for Business Energy and Industrial Strategy,Intellectual Property Office,14/09/2021,Accommodation,People Places & Serv Directorate,Government Property Agency,00000001-12253,63926.98,Not Applicable
Department for Business Energy and Industrial Strategy,Intellectual Property Office,14/09/2021,Accommodation,People Places & Serv Directorate,Government Property Agency,00000001-12253,479.72,Not Applicable
Department for Business Energy and Industrial Strategy,Intellectual Property Office,08/09/2021,Accommodation,People Places & Serv Directorate,Government Property Agency,00000001-12257,28885.89,Not Applicable
Department for Business Energy and Industrial Strategy,Intellectual Property Office,08/09/2021,Accommodation,People Places & Serv Directorate,Government Property Agency,00000001-12257,5452.38,Not Applicable
Department for Business Energy and Industrial Strategy,Intellectual Property Office,08/09/2021,Accommodation,People Places & Serv Directorate,Government Property Agency,00000001-12257,40664.54,Not Applicable
Department for Business Energy and Industrial Strategy,Intellectual Property Office,08/09/2021,Accommodation,People Places & Serv Directorate,Government Property Agency,00000001-12257,12725,Not Applicable
Department for Business Energy and Industrial Strategy,Intellectual Property Office,08/09/2021,Accommodation,People Places & Serv Directorate,Government Property Agency,00000001-12257,9519.68,Not Applicable
Department for Business Energy and Industrial Strategy,Intellectual Property Office,03/09/2021,Pay Costs,IT Directorate,Qualserv Consulting Ltd,C/24321,2614.93,Not Applicable
Department for Business Energy and Industrial Strategy,Intellectual Property Office,06/09/2021,Miscellaneous Expenses General,Innovation Directorate,AudienceNet,INV-1491,23580,Not Applicable
Department for Business Energy and Industrial Strategy,Intellectual Property Office,10/09/2021,Staff Costs,IT Directorate,Tria Recruitment Limited,TRX-1691,10473.36,Not Applicable
Department for Business Energy and Industrial Strategy,Intellectual Property Office,10/09/2021,Staff Costs,IT Directorate,Tria Recruitment Limited,TRX-1703,11717.76,Not Applicable
Department for Business Energy and Industrial Strategy,Intellectual Property Office,10/09/2021,Information Technology,Projects,Tria Recruitment Limited,TRX-1727,7056,Not Applicable
Department for Business Energy and Industrial Strategy,Intellectual Property Office,10/09/2021,Information Technology,Projects,Tria Recruitment Limited,TRX-1728,8820,Not Applicable
Department for Business Energy and Industrial Strategy,Intellectual Property Office,23/09/2021,Supporting UK Business,Innovation Directorate,Bryers LLP,2109148,2500.01,Not Applicable
Department for Business Energy and Industrial Strategy,Intellectual Property Office,01/09/2021,Marketing & Publicity,Innovation Directorate,Axis12 Limited,INV-4172,1303.2,Not Applicable
Department for Business Energy and Industrial Strategy,Intellectual Property Office,30/09/2021,Marketing & Publicity,Innovation Directorate,Axis12 Limited,INV-4216,1303.2,Not Applicable
Department for Business Energy and Industrial Strategy,Intellectual Property Office,07/09/2021,Supporting UK Business,Innovation Directorate,Adamson Jones IP Limited,21938,2500,Not Applicable
Department for Business Energy and Industrial Strategy,Intellectual Property Office,29/09/2021,Information Technology,IT Directorate,WhiteSpider Enterprise Services,2351,1320,Not Applicable
Department for Business Energy and Industrial Strategy,Intellectual Property Office,27/09/2021,Information Technology,IT Directorate,Cloudflare Inc,CI-63400,6928.24,Not Applicable
Department for Business Energy and Industrial Strategy,Intellectual Property Office,29/09/2021,Information Technology,IT Directorate,Cloudflare Inc,CI-68013,7004.23,Not Applicable
Department for Business Energy and Industrial Strategy,Intellectual Property Office,28/09/2021,Information Technology,IT Directorate,Cloudflare Inc,IN197453,2892.05,Not Applicable
Department for Business Energy and Industrial Strategy,Intellectual Property Office,14/09/2021,Supporting UK Business,Innovation Directorate,Innovare IP Ltd,IIP0209,2500,Not Applicable
Department for Business Energy and Industrial Strategy,Intellectual Property Office,01/09/2021,Supporting UK Business,Copyright and Enforcement Directorate,East of England Trading Standards Associ,3182,6137.7,Not Applicable
Department for Business Energy and Industrial Strategy,Intellectual Property Office,28/09/2021,Supporting UK Business,Innovation Directorate,Sheridans,137445,2500,Not Applicable
Department for Business Energy and Industrial Strategy,Intellectual Property Office,10/09/2021,Supporting UK Business,Innovation Directorate,Kate Butler IP Limited,082021AGLIPO01,2500,Not Applicable
Department for Business Energy and Industrial Strategy,Intellectual Property Office,28/09/2021,Supporting UK Business,Innovation Directorate,Kate Butler IP Limited,092021ADAIPO01,2500,Not Applicable
Department for Business Energy and Industrial Strategy,Intellectual Property Office,30/09/2021,Supporting UK Business,Innovation Directorate,Kate Butler IP Limited,092021ATLIOP01,2500,Not Applicable
Department for Business Energy and Industrial Strategy,Intellectual Property Office,30/09/2021,Supporting UK Business,Innovation Directorate,Kate Butler IP Limited,092021P3MIPO01,2500,Not Applicable
Department for Business Energy and Industrial Strategy,Intellectual Property Office,30/09/2021,Staff Costs,International Policy Directorate,Practical Mandarin,2448,1500,Not Applicable
Department for Business Energy and Industrial Strategy,Intellectual Property Office,14/09/2021,Other FA at Cost,IT Directorate,ACS Systems UK Limited,INV405546,8641.8,Not Applicable
Department for Business Energy and Industrial Strategy,Intellectual Property Office,02/09/2021,Other FA at Cost,IT Directorate,Empiric Solutions Ltd,CR0000005133,-51735,Not Applicable
Department for Business Energy and Industrial Strategy,Intellectual Property Office,02/09/2021,Other FA at Cost,IT Directorate,Empiric Solutions Ltd,SI0000065413,51735,Not Applicable
Department for Business Energy and Industrial Strategy,Intellectual Property Office,08/09/2021,Other FA at Cost,Projects,Kier Construction Western & Wales,10265534,32139.12,Not Applicable
Department for Business Energy and Industrial Strategy,Intellectual Property Office,07/09/2021,Accommodation,People Places & Serv Directorate,Kier Construction Western & Wales,10265806,7902.06,Not Applicable
Department for Business Energy and Industrial Strategy,Intellectual Property Office,22/09/2021,Miscellaneous Expenses General,People Places & Serv Directorate,MHR International UK Ltd,SIN137538,14212.8,Not Applicable
Department for Business Energy and Industrial Strategy,Intellectual Property Office,08/09/2021,Office Machinery,People Places & Serv Directorate,Roland DG (UK) Ltd,9110087521,4717.32,Not Applicable
Department for Business Energy and Industrial Strategy,Intellectual Property Office,07/09/2021,Staff Costs,IT Directorate,"DATAVERSITY Education, LLC",DVTC2021-170-INV,1178.07,Not Applicable
Department for Business Energy and Industrial Strategy,Intellectual Property Office,22/09/2021,Pay Costs,Projects,IRG Advisors T/A Odgers Interim,866154,28800,Not Applicable
Department for Business Energy and Industrial Strategy,Intellectual Property Office,29/09/2021,Staff Costs,IT Directorate,LearnQuest s.r.o,SPVC-192572,850.5,Not Applicable
Department for Business Energy and Industrial Strategy,Intellectual Property Office,29/09/2021,Staff Costs,IT Directorate,LearnQuest s.r.o,SPVC-192573,850.5,Not Applicable
Department for Business Energy and Industrial Strategy,Intellectual Property Office,10/09/2021,Supporting UK Business,Innovation Directorate,Page White & Farrer Limited,PWF310821,2500,Not Applicable
Department for Business Energy and Industrial Strategy,Intellectual Property Office,29/09/2021,Information Technology,Patent Directorate,Law Business Research Limited,SI074707,1056,Not Applicable
Department for Business Energy and Industrial Strategy,Intellectual Property Office,07/09/2021,Marketing & Publicity,Innovation Directorate,Law Business Research Limited,SI074708,1056,Not Applicable
Department for Business Energy and Industrial Strategy,Intellectual Property Office,07/09/2021,Marketing & Publicity,Innovation Directorate,Law Business Research Limited,SI075887,1290,Not Applicable
Department for Business Energy and Industrial Strategy,Intellectual Property Office,07/09/2021,Marketing & Publicity,Innovation Directorate,Law Business Research Limited,SI075976,1290,Not Applicable
Department for Business Energy and Industrial Strategy,Intellectual Property Office,15/09/2021,Information Technology,IT Directorate,Hewlett Packard International Bank DAC,4.01E+11,17859.29,Not Applicable
Department for Business Energy and Industrial Strategy,Intellectual Property Office,14/09/2021,Information Technology,IT Directorate,Hewlett Packard International Bank DAC,4.01E+11,18113.07,Not Applicable
Department for Business Energy and Industrial Strategy,Intellectual Property Office,27/09/2021,Supporting UK Business,International Policy Directorate,Taylor Vinters Via LLC,210612,1370,Not Applicable
Department for Business Energy and Industrial Strategy,Intellectual Property Office,13/09/2021,Staff Costs,People Places & Serv Directorate,IEM Cardiff Ltd t/a Pitman Training Card,2912,3302.2,Not Applicable
Department for Business Energy and Industrial Strategy,Intellectual Property Office,07/09/2021,Pay Costs,Finance Directorate,Seymour John (Cardiff) Limited,484,5972.34,Not Applicable
Department for Business Energy and Industrial Strategy,Intellectual Property Office,07/09/2021,Pay Costs,Finance Directorate,Seymour John (Cardiff) Limited,485,4777.87,Not Applicable
Department for Business Energy and Industrial Strategy,Intellectual Property Office,14/09/2021,Pay Costs,Finance Directorate,Seymour John (Cardiff) Limited,487,5972.34,Not Applicable
Department for Business Energy and Industrial Strategy,Intellectual Property Office,22/09/2021,Pay Costs,Finance Directorate,Seymour John (Cardiff) Limited,488,5972.34,Not Applicable
Department for Business Energy and Industrial Strategy,Intellectual Property Office,29/09/2021,Pay Costs,Finance Directorate,Seymour John (Cardiff) Limited,489,5972.34,Not Applicable
Department for Business Energy and Industrial Strategy,Intellectual Property Office,01/09/2021,Miscellaneous Expenses General,People Places & Serv Directorate, EntrepreneurFirstCIC T/A CodeFirstGirls,CN-0642,-97200,Not Applicable
Department for Business Energy and Industrial Strategy,Intellectual Property Office,08/09/2021,Staff Costs,IT Directorate, EntrepreneurFirstCIC T/A CodeFirstGirls,INV-0647,1200,Not Applicable
Department for Business Energy and Industrial Strategy,Intellectual Property Office,14/09/2021,Supporting UK Business,Innovation Directorate,Mathys & Squire Consulting Ltd,11228,2500,Not Applicable
Department for Business Energy and Industrial Strategy,Intellectual Property Office,01/09/2021,Other FA at Cost,IT Directorate,Pure Technology Group - T/A Pure Data So,SINV00193629,1166.4,Not Applicable
Department for Business Energy and Industrial Strategy,Intellectual Property Office,07/09/2021,Other FA at Cost,IT Directorate,Teqex Ltd,INV-19688,4167,Not Applicable
Department for Business Energy and Industrial Strategy,Intellectual Property Office,07/09/2021,Staff Costs,People Places & Serv Directorate,Indeed Ireland Operations Ltd,49217286,6000,Not Applicable
Department for Business Energy and Industrial Strategy,Intellectual Property Office,28/09/2021,Marketing & Publicity,Innovation Directorate,The Turing Trust,IPO1,1000,Not Applicable
Department for Business Energy and Industrial Strategy,Intellectual Property Office,10/09/2021,Staff Costs,People Places & Serv Directorate,David Lynas Consulting Limited,SAB-I-059,2628,Not Applicable
Department for Business Energy and Industrial Strategy,Intellectual Property Office,08/09/2021,Staff Costs,IT Directorate,IRM UK Strategic IT Training Ltd,219994243,1194,Not Applicable
Department for Business Energy and Industrial Strategy,Intellectual Property Office,16/09/2021,Other FA at Cost,IT Directorate,Vohkus Limited,IN30842108,8941.2,Not Applicable
Department for Business Energy and Industrial Strategy,Intellectual Property Office,20/09/2021,Staff Costs,Patent Directorate,Ngagementworks Limited,NGW00378,900,Not Applicable
Department for Business Energy and Industrial Strategy,Intellectual Property Office,28/09/2021,Supporting UK Business,Innovation Directorate,CRASKE & Co,11434,2500,Not Applicable
Department for Business Energy and Industrial Strategy,Intellectual Property Office,30/09/2021,Office Stationery,People Places & Serv Directorate,Amazon.Co.Uk,H57720211001ckbtivhyr,19.98,Not Applicable
Department for Business Energy and Industrial Strategy,Intellectual Property Office,29/09/2021,Career Development Services,People Places & Serv Directorate,Cipd.Co.Uk,H57720211001hdgoygmkp,1308,Not Applicable
Department for Business Energy and Industrial Strategy,Intellectual Property Office,29/09/2021,Career Development Services,People Places & Serv Directorate,Schoolism - Imaginism,H57720211001htnmknpii,229.86,Not Applicable
Department for Business Energy and Industrial Strategy,Intellectual Property Office,29/09/2021,Overseas Patent Specifications,Patent Directorate,Www.Rsc.Org,H57720211001wnsmjbikf,42.5,Not Applicable
Department for Business Energy and Industrial Strategy,Intellectual Property Office,28/09/2021,Office Stationery,People Places & Serv Directorate,Amznmktplace,H57720210930fcvmgvkst,16.98,Not Applicable
Department for Business Energy and Industrial Strategy,Intellectual Property Office,28/09/2021,Office Stationery,People Places & Serv Directorate,Amznmktplace,H57720210930jabbacbok,12.34,Not Applicable
Department for Business Energy and Industrial Strategy,Intellectual Property Office,23/09/2021,Overseas Patent Specifications,Patent Directorate,Www.Springer.Com,H57720210930jqagfmfgp,19.95,Not Applicable
Department for Business Energy and Industrial Strategy,Intellectual Property Office,27/09/2021,Overseas Patent Specifications,Patent Directorate,Wiley,H57720210930lajmwrkuq,31.67,Not Applicable
Department for Business Energy and Industrial Strategy,Intellectual Property Office,27/09/2021,Overseas Patent Specifications,Patent Directorate,Wiley,H57720210930lmqibnxcf,44.64,Not Applicable
Department for Business Energy and Industrial Strategy,Intellectual Property Office,28/09/2021,Other,People Places & Serv Directorate,Wf* Wayfair 3644240354,H57720210930oxenqdxdx,49.99,Not Applicable
Department for Business Energy and Industrial Strategy,Intellectual Property Office,23/09/2021,Overseas Patent Specifications,Patent Directorate,Www.Springer.Com,H57720210930pmipadsxg,-19.95,Not Applicable
Department for Business Energy and Industrial Strategy,Intellectual Property Office,28/09/2021,Office Stationery,People Places & Serv Directorate,Amznmktplace,H57720210930slxumbwey,3.41,Not Applicable
Department for Business Energy and Industrial Strategy,Intellectual Property Office,28/09/2021,Other,People Places & Serv Directorate,Asda George Com Leeds,H57720210930vunoivwio,22.95,Not Applicable
Department for Business Energy and Industrial Strategy,Intellectual Property Office,23/09/2021,Overseas Patent Specifications,Patent Directorate,Www.Springer.Com,H57720210930xlhovfgfx,19.95,Not Applicable
Department for Business Energy and Industrial Strategy,Intellectual Property Office,27/09/2021,Office Stationery,People Places & Serv Directorate,Amazon.Co.Uk,H57720210929bmqdhpitt,17.94,Not Applicable
Department for Business Energy and Industrial Strategy,Intellectual Property Office,27/09/2021,Office Stationery,People Places & Serv Directorate,Amznmktplace,H57720210929cvqhwvhvk,16.78,Not Applicable
Department for Business Energy and Industrial Strategy,Intellectual Property Office,27/09/2021,Overseas Patent Specifications,Patent Directorate,Nature Article Pdf,H57720210929dhqrwknuh,28.95,Not Applicable
Department for Business Energy and Industrial Strategy,Intellectual Property Office,27/09/2021,Office Stationery,People Places & Serv Directorate,Amznmktplace,H57720210929jgzzanfsd,24.49,Not Applicable
Department for Business Energy and Industrial Strategy,Intellectual Property Office,27/09/2021,Office Stationery,People Places & Serv Directorate,Amznmktplace,H57720210929otfkxdohe,26.99,Not Applicable
Department for Business Energy and Industrial Strategy,Intellectual Property Office,27/09/2021,Office Stationery,People Places & Serv Directorate,Amznmktplace,H57720210929oyvwbitoi,16.3,Not Applicable
Department for Business Energy and Industrial Strategy,Intellectual Property Office,27/09/2021,Office Stationery,People Places & Serv Directorate,Amznmktplace,H57720210929twzhwdemj,5.29,Not Applicable
Department for Business Energy and Industrial Strategy,Intellectual Property Office,27/09/2021,Overseas Patent Specifications,Patent Directorate,Association For Computing,H57720210929vkhnqvbpj,11.31,Not Applicable
Department for Business Energy and Industrial Strategy,Intellectual Property Office,27/09/2021,Office Stationery,People Places & Serv Directorate,Stationery Office Book,H57720210929wrczmqwte,10.2,Not Applicable
Department for Business Energy and Industrial Strategy,Intellectual Property Office,27/09/2021,Office Stationery,People Places & Serv Directorate,Amznmktplace,H57720210929xqpjuovlp,3.58,Not Applicable
Department for Business Energy and Industrial Strategy,Intellectual Property Office,26/09/2021,Office Stationery,People Places & Serv Directorate,Epidemic Sound Ab,H57720210928bsuunvamq,39,Not Applicable
Department for Business Energy and Industrial Strategy,Intellectual Property Office,26/09/2021,Office Stationery,People Places & Serv Directorate,Amznmktplace,H57720210928hipmprevk,24.98,Not Applicable
Department for Business Energy and Industrial Strategy,Intellectual Property Office,24/09/2021,Office Stationery,People Places & Serv Directorate,Www.Officesupplies.Org,H57720210928hovgndfbe,22.61,Not Applicable
Department for Business Energy and Industrial Strategy,Intellectual Property Office,26/09/2021,Office Stationery,People Places & Serv Directorate,Amznmktplace,H57720210928itprdkllm,101.49,Not Applicable
Department for Business Energy and Industrial Strategy,Intellectual Property Office,24/09/2021,Overseas Patent Specifications,Patent Directorate,Mary Ann Liebert Pub,H57720210928lbaovmduk,44.63,Not Applicable
Department for Business Energy and Industrial Strategy,Intellectual Property Office,24/09/2021,Office Stationery,People Places & Serv Directorate,Sig,H57720210928mwgdkncuu,550.06,Not Applicable
Department for Business Energy and Industrial Strategy,Intellectual Property Office,26/09/2021,Office Stationery,People Places & Serv Directorate,Amznmktplace,H57720210928ofsfqxvup,101.5,Not Applicable
Department for Business Energy and Industrial Strategy,Intellectual Property Office,24/09/2021,Overseas Patent Specifications,Patent Directorate,Onepetro,H57720210928vtawqxyjs,21.18,Not Applicable
Department for Business Energy and Industrial Strategy,Intellectual Property Office,26/09/2021,Minor Works-Goods,People Places & Serv Directorate,Amznmktplace,H57720210928ywcephaij,39.94,Not Applicable
Department for Business Energy and Industrial Strategy,Intellectual Property Office,23/09/2021,Books,Patent Directorate,Stamps Direct Ltd,H57720210925bvlkmegvm,203.42,Not Applicable
Department for Business Energy and Industrial Strategy,Intellectual Property Office,23/09/2021,Advertising Distribution,Innovation Directorate,Ges Limited,H57720210925rfscetowd,224.95,Not Applicable
Department for Business Energy and Industrial Strategy,Intellectual Property Office,23/09/2021,Office Stationery,People Places & Serv Directorate,Amznmktplace,H57720210925ubytimtib,18.83,Not Applicable
Department for Business Energy and Industrial Strategy,Intellectual Property Office,22/09/2021,Education Campaign,Innovation Directorate,Www.Showdata.Com,H57720210924hixrcniia,234,Not Applicable
Department for Business Energy and Industrial Strategy,Intellectual Property Office,22/09/2021,Network and infrastructure H/W,IT Directorate,Currys Online,H57720210924lrshbprte,327,Not Applicable
Department for Business Energy and Industrial Strategy,Intellectual Property Office,22/09/2021,Office Stationery,People Places & Serv Directorate,South Wales Suppliers,H57720210924nibislims,68.4,Not Applicable
Department for Business Energy and Industrial Strategy,Intellectual Property Office,21/09/2021,Minor Works-Goods,People Places & Serv Directorate,Www.Johnlewis.Com,H57720210924rbhuhhhvf,7998,Not Applicable
Department for Business Energy and Industrial Strategy,Intellectual Property Office,22/09/2021,Minor Works-Goods,People Places & Serv Directorate,Toolstop Co Uk,H57720210924tcrpykwge,577,Not Applicable
Department for Business Energy and Industrial Strategy,Intellectual Property Office,22/09/2021,Office Stationery,People Places & Serv Directorate,Screwfix Direct,H57720210924wqlgkenmv,106.4,Not Applicable
Department for Business Energy and Industrial Strategy,Intellectual Property Office,22/09/2021,Career Development Services,People Places & Serv Directorate,Cfoi.Org.Uk,H57720210924xftcssuyk,190,Not Applicable
Department for Business Energy and Industrial Strategy,Intellectual Property Office,22/09/2021,Entertainment,Innovation Directorate,Amznmktplace,H57720210924xtlebpkqy,15.98,Not Applicable
Department for Business Energy and Industrial Strategy,Intellectual Property Office,21/09/2021,Office Stationery,People Places & Serv Directorate,Value Products Ltd,H57720210923gdvunrxts,100.5,Not Applicable
Department for Business Energy and Industrial Strategy,Intellectual Property Office,21/09/2021,Office Stationery,People Places & Serv Directorate,Value Products Ltd,H57720210923lumijresu,9.78,Not Applicable
Department for Business Energy and Industrial Strategy,Intellectual Property Office,21/09/2021,Career Development Services,Innovation Directorate,Beyondconference.Org,H57720210923nufpevruq,504,Not Applicable
Department for Business Energy and Industrial Strategy,Intellectual Property Office,21/09/2021,Career Development Services,Innovation Directorate,Positive Momentum,H57720210923wmsjtlggb,4140,Not Applicable
Department for Business Energy and Industrial Strategy,Intellectual Property Office,20/09/2021,Office Stationery,People Places & Serv Directorate,Amznmktplace,H57720210922etsrkhyek,24.49,Not Applicable
Department for Business Energy and Industrial Strategy,Intellectual Property Office,20/09/2021,Education Campaign,Innovation Directorate,Globe Business Media Grou,H57720210922nyypxorxx,728.32,Not Applicable
Department for Business Energy and Industrial Strategy,Intellectual Property Office,20/09/2021,Overseas Patent Specifications,Patent Directorate,Eage Publications,H57720210922xeannvlmk,17.62,Not Applicable
Department for Business Energy and Industrial Strategy,Intellectual Property Office,20/09/2021,Office Stationery,People Places & Serv Directorate,Amznmktplace,H57720210922yjduhfpmt,23.19,Not Applicable
Department for Business Energy and Industrial Strategy,Intellectual Property Office,17/09/2021,Office Stationery,People Places & Serv Directorate,Value Products Ltd,H57720210921nysustmti,11.7,Not Applicable
Department for Business Energy and Industrial Strategy,Intellectual Property Office,16/09/2021,Education Campaign,Innovation Directorate,Www.Cipr.Co.Uk,H57720210918dytfimryx,180,Not Applicable
Department for Business Energy and Industrial Strategy,Intellectual Property Office,16/09/2021,Office Stationery,People Places & Serv Directorate,Screwfix Direct,H57720210918hxywnvbmd,209.92,Not Applicable
Department for Business Energy and Industrial Strategy,Intellectual Property Office,16/09/2021,Office Stationery,People Places & Serv Directorate,Amznmktplace,H57720210918nvjoeyytw,34,Not Applicable
Department for Business Energy and Industrial Strategy,Intellectual Property Office,16/09/2021,Network and infrastructure H/W,IT Directorate,Info@taotech.Co.Uk,H57720210918wcxlgdxwn,86.75,Not Applicable
Department for Business Energy and Industrial Strategy,Intellectual Property Office,14/09/2021,Office Stationery,People Places & Serv Directorate,Keytracker Ltd,H57720210916nxlokuacr,476.46,Not Applicable
Department for Business Energy and Industrial Strategy,Intellectual Property Office,14/09/2021,Career Development Services,Innovation Directorate,Haymarket Media Group,H57720210916qqwywvyfn,594,Not Applicable
Department for Business Energy and Industrial Strategy,Intellectual Property Office,13/09/2021,Entertainment,IT Directorate,Domino S Pizza,H57720210915nfxzvxnkp,59.47,Not Applicable
Department for Business Energy and Industrial Strategy,Intellectual Property Office,13/09/2021,Books,People Places & Serv Directorate,Amazon.Co.Uk,H57720210915pmjeeswsw,167.7,Not Applicable
Department for Business Energy and Industrial Strategy,Intellectual Property Office,10/09/2021,Minor Works-Goods,People Places & Serv Directorate,Screwfix Direct,H57720210914khnyczffi,186.75,Not Applicable
Department for Business Energy and Industrial Strategy,Intellectual Property Office,09/09/2021,Office Stationery,People Places & Serv Directorate,Amznmktplace Amazon.Co.Uk,H57720210914nziulycet,30.97,Not Applicable
Department for Business Energy and Industrial Strategy,Intellectual Property Office,12/09/2021,Office Stationery,People Places & Serv Directorate,Amznmktplace,H57720210914siptwuvie,13.48,Not Applicable
Department for Business Energy and Industrial Strategy,Intellectual Property Office,11/09/2021,Office Stationery,People Places & Serv Directorate,Amznmktplace,H57720210914wcsjmggsw,11.98,Not Applicable
Department for Business Energy and Industrial Strategy,Intellectual Property Office,11/09/2021,Perpetual Licences,IT Directorate,Namesco Ltd,H57720210914wlejfnzti,300,Not Applicable
Department for Business Energy and Industrial Strategy,Intellectual Property Office,09/09/2021,Office Stationery,People Places & Serv Directorate,Www.Test-Meter.Co.Uk,H57720210912mlpfwvybd,320.4,Not Applicable
Department for Business Energy and Industrial Strategy,Intellectual Property Office,09/09/2021,Career Development Services,Patent Directorate,Soc Of Chem Ind/in,H57720210912moqoiuilx,155,Not Applicable
Department for Business Energy and Industrial Strategy,Intellectual Property Office,09/09/2021,Career Development Services,Innovation Directorate,Globe Business Media Grou,H57720210912ocecthlwv,851.95,Not Applicable
Department for Business Energy and Industrial Strategy,Intellectual Property Office,09/09/2021,Office Stationery,People Places & Serv Directorate,Amznmktplace,H57720210912vjaggzlwv,5.99,Not Applicable
Department for Business Energy and Industrial Strategy,Intellectual Property Office,08/09/2021,Office Stationery,People Places & Serv Directorate,Amznmktplace,H57720210910ektfgoygb,53.9,Not Applicable
Department for Business Energy and Industrial Strategy,Intellectual Property Office,08/09/2021,Career Development Services,Innovation Directorate,Www.Cipr.Co.Uk,H57720210910glbivihey,360,Not Applicable
Department for Business Energy and Industrial Strategy,Intellectual Property Office,07/09/2021,Overseas Patent Specifications,Patent Directorate,Mary Ann Liebert Pub,H57720210910mwrhbnvpp,38,Not Applicable
Department for Business Energy and Industrial Strategy,Intellectual Property Office,08/09/2021,Advertising Distribution,Innovation Directorate,Amznmktplace,H57720210910opjcwptfo,48.19,Not Applicable
Department for Business Energy and Industrial Strategy,Intellectual Property Office,08/09/2021,Office Stationery,People Places & Serv Directorate,Amznmktplace,H57720210910sgcsnhkon,28.48,Not Applicable
Department for Business Energy and Industrial Strategy,Intellectual Property Office,07/09/2021,Advertising Distribution,Innovation Directorate,Amznmktplace,H57720210909bdihnifel,13.05,Not Applicable
Department for Business Energy and Industrial Strategy,Intellectual Property Office,07/09/2021,Office Stationery,People Places & Serv Directorate,Amznmktplace,H57720210909fotnwscny,74.74,Not Applicable
Department for Business Energy and Industrial Strategy,Intellectual Property Office,07/09/2021,Overseas Patent Specifications,Patent Directorate,Knowledgeworks Global-Au,H57720210909hevrvftcf,42.47,Not Applicable
